{"text_format":"1","workbook":"xlsx","n_sheets":4,"sheets":["Report_4W","intermediate","data","settings"],"not_rendered":{"charts":3,"images":1,"macros":1,"external_links":0,"defined_names":10,"comments":0,"pivot_tables":0},"unopened":[],"bounds":{"document_bytes":16777216,"sheet_cells":100000,"rows_first":2000,"rows_last":500,"rows_between":2000,"halvings":0,"cell_chars":16384,"cell_head_chars":4096},"cells_cut":0,"cells_raw":0,"read":"whole","date_system":"1900"}

{"sheet":"Report_4W","index":0,"n_rows":14,"n_cols":28,"rows_kept":14,"cut":false,"hidden":false,"merged":[[0,16,0,18],[2,1,2,3],[2,7,2,9],[0,22,0,23],[2,4,2,6],[0,11,0,12]]}
["Name: ",{"$f":"Nachname&\", \"&Vorname","v":", "},null,null,null,null,null,null,null,"Geburstdatum: ",null,{"$f":"Geburtsdatum","v":"00:00:00"},null,null,null,null,null,null,null,null,null,"Betrachtungszeitraum:",{"$f":"TEXT(MIN(tDatumswerte),\"tt. MMM.\")&\" - \"&TEXT(MAX(tDatumswerte),\"tt. MMM.jjjj\")","v":"00. Jan. - 00. Jan.1900"}]
[]
[null,"Morgens ",null,null,"Mittags ",null,null,"Abends "]
["Datum","Syst.","Diast.","Puls","Syst.","Diast.","Puls","Syst.","Diast.","Puls"]
[]
[]
[]
[]
[]
[]
[]
[]
[]
[null,null,null,null,null,null,null,null,null,null,null,null,null,null,null,null,null,null,null,null,null,null,null,null,null,null,null,"─"]

{"sheet":"intermediate","index":1,"n_rows":88,"n_cols":39,"rows_kept":88,"cut":false,"hidden":true,"merged":[]}
[]
[null,"4W-Datentabelle: Max. Kategorie"]
[]
[null,"Morgens","Mittags","Abends",null,null,null,"Datum1","Tageszeit","Datum2","Syst.","Diast.","Puls","Kat_Morgen","Kat_Mittag","Kat_Abend",null,null,null,null,null,1,2,3,4,5,6,1,2,3,4,5,6,1,2,3,4,5,6]
[null,{"$f":"MAX(VLOOKUP(Report_4W!B5,tKategorien[],3),VLOOKUP(Report_4W!C5,tKategorien[[Limit diast. ]:[Kat.]],2))","v":{"$error":"#N/A"}},{"$f":"MAX(VLOOKUP(Report_4W!E5,tKategorien[],3),VLOOKUP(Report_4W!F5,tKategorien[[Limit diast. ]:[Kat.]],2))","v":{"$error":"#N/A"}},{"$f":"MAX(VLOOKUP(Report_4W!H5,tKategorien[],3),VLOOKUP(Report_4W!I5,tKategorien[[Limit diast. ]:[Kat.]],2))","v":{"$error":"#N/A"}},null,null,null,{"$f":"Start_4W","v":"2019-04-22"},"Morgen",{"$f":"INT(H5)+0.25","v":43577.25},{"$f":"VLOOKUP(tSequence[[#This Row],[Datum2]],tData[[Sort]:[Puls]],2,FALSE)","v":{"$error":"#N/A"}},{"$f":"VLOOKUP(tSequence[[#This Row],[Datum2]],tData[[Sort]:[Puls]],3,FALSE)","v":{"$error":"#N/A"}},{"$f":"VLOOKUP(tSequence[[#This Row],[Datum2]],tData[[Sort]:[Puls]],4,FALSE)","v":{"$error":"#N/A"}},{"$f":"MAX(VLOOKUP($K5,tKategorien[],3),VLOOKUP($L5,tKategorien[[Limit diast. ]:[Kat.]],2))","v":{"$error":"#N/A"}},{"$f":"MAX(VLOOKUP($K6,tKategorien[],3),VLOOKUP($L6,tKategorien[[Limit diast. ]:[Kat.]],2))","v":{"$error":"#N/A"}},{"$f":"MAX(VLOOKUP($K7,tKategorien[],3),VLOOKUP($L7,tKategorien[[Limit diast. ]:[Kat.]],2))","v":{"$error":"#N/A"}},null,null,null,null,null,"Morgens","Morgens","Morgens","Morgens","Morgens","Morgens","Mittags","Mittags","Mittags","Mittags","Mittags","Mittags","Abends","Abends","Abends","Abends","Abends","Abends"]
[null,{"$f":"MAX(VLOOKUP(Report_4W!B6,tKategorien[],3),VLOOKUP(Report_4W!C6,tKategorien[[Limit diast. ]:[Kat.]],2))","v":{"$error":"#N/A"}},{"$f":"MAX(VLOOKUP(Report_4W!E6,tKategorien[],3),VLOOKUP(Report_4W!F6,tKategorien[[Limit diast. ]:[Kat.]],2))","v":{"$error":"#N/A"}},{"$f":"MAX(VLOOKUP(Report_4W!H6,tKategorien[],3),VLOOKUP(Report_4W!I6,tKategorien[[Limit diast. ]:[Kat.]],2))","v":{"$error":"#N/A"}},null,null,null,{"$f":"INT($H$5+(ROW()-5)/3)","v":"2019-04-22"},"Mittag",{"$f":"INT(H6)+0.5","v":43577.5},{"$f":"VLOOKUP(tSequence[[#This Row],[Datum2]],tData[[Sort]:[Puls]],2,FALSE)","v":{"$error":"#N/A"}},{"$f":"VLOOKUP(tSequence[[#This Row],[Datum2]],tData[[Sort]:[Puls]],3,FALSE)","v":{"$error":"#N/A"}},{"$f":"VLOOKUP(tSequence[[#This Row],[Datum2]],tData[[Sort]:[Puls]],4,FALSE)","v":{"$error":"#N/A"}},null,null,null,null,null,null,null,null,"Kat.1","Kat.2","Kat.3","Kat.4","Kat.5","Kat.6","Kat.1","Kat.2","Kat.3","Kat.4","Kat.5","Kat.6","Kat.1","Kat.2","Kat.3","Kat.4","Kat.5","Kat.6"]
[null,{"$f":"MAX(VLOOKUP(Report_4W!B7,tKategorien[],3),VLOOKUP(Report_4W!C7,tKategorien[[Limit diast. ]:[Kat.]],2))","v":{"$error":"#N/A"}},{"$f":"MAX(VLOOKUP(Report_4W!E7,tKategorien[],3),VLOOKUP(Report_4W!F7,tKategorien[[Limit diast. ]:[Kat.]],2))","v":{"$error":"#N/A"}},{"$f":"MAX(VLOOKUP(Report_4W!H7,tKategorien[],3),VLOOKUP(Report_4W!I7,tKategorien[[Limit diast. ]:[Kat.]],2))","v":{"$error":"#N/A"}},null,null,null,"2019-04-22","Abend",{"$f":"INT(H7)+0.75","v":43577.75},{"$f":"VLOOKUP(tSequence[[#This Row],[Datum2]],tData[[Sort]:[Puls]],2,FALSE)","v":{"$error":"#N/A"}},{"$f":"VLOOKUP(tSequence[[#This Row],[Datum2]],tData[[Sort]:[Puls]],3,FALSE)","v":{"$error":"#N/A"}},{"$f":"VLOOKUP(tSequence[[#This Row],[Datum2]],tData[[Sort]:[Puls]],4,FALSE)","v":{"$error":"#N/A"}}]
[null,{"$f":"MAX(VLOOKUP(Report_4W!B8,tKategorien[],3),VLOOKUP(Report_4W!C8,tKategorien[[Limit diast. ]:[Kat.]],2))","v":{"$error":"#N/A"}},{"$f":"MAX(VLOOKUP(Report_4W!E8,tKategorien[],3),VLOOKUP(Report_4W!F8,tKategorien[[Limit diast. ]:[Kat.]],2))","v":{"$error":"#N/A"}},{"$f":"MAX(VLOOKUP(Report_4W!H8,tKategorien[],3),VLOOKUP(Report_4W!I8,tKategorien[[Limit diast. ]:[Kat.]],2))","v":{"$error":"#N/A"}},null,null,null,"2019-04-23","Morgen",{"$f":"INT(H8)+0.25","v":43578.25},{"$f":"VLOOKUP(tSequence[[#This Row],[Datum2]],tData[[Sort]:[Puls]],2,FALSE)","v":{"$error":"#N/A"}},{"$f":"VLOOKUP(tSequence[[#This Row],[Datum2]],tData[[Sort]:[Puls]],3,FALSE)","v":{"$error":"#N/A"}},{"$f":"VLOOKUP(tSequence[[#This Row],[Datum2]],tData[[Sort]:[Puls]],4,FALSE)","v":{"$error":"#N/A"}},{"$f":"MAX(VLOOKUP($K8,tKategorien[],3),VLOOKUP($L8,tKategorien[[Limit diast. ]:[Kat.]],2))","v":{"$error":"#N/A"}},{"$f":"MAX(VLOOKUP($K9,tKategorien[],3),VLOOKUP($L9,tKategorien[[Limit diast. ]:[Kat.]],2))","v":{"$error":"#N/A"}},{"$f":"MAX(VLOOKUP($K10,tKategorien[],3),VLOOKUP($L10,tKategorien[[Limit diast. ]:[Kat.]],2))","v":{"$error":"#N/A"}},null,null,null,{"$f":"WEEKNUM(Start_4W,21)&\"/\"&YEAR(Start_4W)","v":"17/2019"},"Morgens",{"$f":"COUNTIF(intermediate!$N$5:$N$25,V$4)","v":0},{"$f":"COUNTIF(intermediate!$N$5:$N$25,W$4)","v":0},{"$f":"COUNTIF(intermediate!$N$5:$N$25,X$4)","v":0},{"$f":"COUNTIF(intermediate!$N$5:$N$25,Y$4)","v":0},{"$f":"COUNTIF(intermediate!$N$5:$N$25,Z$4)","v":0},{"$f":"COUNTIF(intermediate!$N$5:$N$25,AA$4)","v":0}]
[null,{"$f":"MAX(VLOOKUP(Report_4W!B9,tKategorien[],3),VLOOKUP(Report_4W!C9,tKategorien[[Limit diast. ]:[Kat.]],2))","v":{"$error":"#N/A"}},{"$f":"MAX(VLOOKUP(Report_4W!E9,tKategorien[],3),VLOOKUP(Report_4W!F9,tKategorien[[Limit diast. ]:[Kat.]],2))","v":{"$error":"#N/A"}},{"$f":"MAX(VLOOKUP(Report_4W!H9,tKategorien[],3),VLOOKUP(Report_4W!I9,tKategorien[[Limit diast. ]:[Kat.]],2))","v":{"$error":"#N/A"}},null,null,null,"2019-04-23","Mittag",{"$f":"INT(H9)+0.5","v":43578.5},{"$f":"VLOOKUP(tSequence[[#This Row],[Datum2]],tData[[Sort]:[Puls]],2,FALSE)","v":{"$error":"#N/A"}},{"$f":"VLOOKUP(tSequence[[#This Row],[Datum2]],tData[[Sort]:[Puls]],3,FALSE)","v":{"$error":"#N/A"}},{"$f":"VLOOKUP(tSequence[[#This Row],[Datum2]],tData[[Sort]:[Puls]],4,FALSE)","v":{"$error":"#N/A"}},null,null,null,null,null,null,null,"Mittags",null,null,null,null,null,null,{"$f":"COUNTIF(intermediate!$O$5:$O$25,AB$4)","v":0},{"$f":"COUNTIF(intermediate!$O$5:$O$25,AC$4)","v":0},{"$f":"COUNTIF(intermediate!$O$5:$O$25,AD$4)","v":0},{"$f":"COUNTIF(intermediate!$O$5:$O$25,AE$4)","v":0},{"$f":"COUNTIF(intermediate!$O$5:$O$25,AF$4)","v":0},{"$f":"COUNTIF(intermediate!$O$5:$O$25,AG$4)","v":0}]
[null,{"$f":"MAX(VLOOKUP(Report_4W!B10,tKategorien[],3),VLOOKUP(Report_4W!C10,tKategorien[[Limit diast. ]:[Kat.]],2))","v":{"$error":"#N/A"}},{"$f":"MAX(VLOOKUP(Report_4W!E10,tKategorien[],3),VLOOKUP(Report_4W!F10,tKategorien[[Limit diast. ]:[Kat.]],2))","v":{"$error":"#N/A"}},{"$f":"MAX(VLOOKUP(Report_4W!H10,tKategorien[],3),VLOOKUP(Report_4W!I10,tKategorien[[Limit diast. ]:[Kat.]],2))","v":{"$error":"#N/A"}},null,null,null,"2019-04-23","Abend",{"$f":"INT(H10)+0.75","v":43578.75},{"$f":"VLOOKUP(tSequence[[#This Row],[Datum2]],tData[[Sort]:[Puls]],2,FALSE)","v":{"$error":"#N/A"}},{"$f":"VLOOKUP(tSequence[[#This Row],[Datum2]],tData[[Sort]:[Puls]],3,FALSE)","v":{"$error":"#N/A"}},{"$f":"VLOOKUP(tSequence[[#This Row],[Datum2]],tData[[Sort]:[Puls]],4,FALSE)","v":{"$error":"#N/A"}},null,null,null,null,null,null,null,"Abends",null,null,null,null,null,null,null,null,null,null,null,null,{"$f":"COUNTIF(intermediate!$P$5:$P$25,AH$4)","v":0},{"$f":"COUNTIF(intermediate!$P$5:$P$25,AI$4)","v":0},{"$f":"COUNTIF(intermediate!$P$5:$P$25,AJ$4)","v":0},{"$f":"COUNTIF(intermediate!$P$5:$P$25,AK$4)","v":0},{"$f":"COUNTIF(intermediate!$P$5:$P$25,AL$4)","v":0},{"$f":"COUNTIF(intermediate!$P$5:$P$25,AM$4)","v":0}]
[null,{"$f":"MAX(VLOOKUP(Report_4W!B11,tKategorien[],3),VLOOKUP(Report_4W!C11,tKategorien[[Limit diast. ]:[Kat.]],2))","v":{"$error":"#N/A"}},{"$f":"MAX(VLOOKUP(Report_4W!E11,tKategorien[],3),VLOOKUP(Report_4W!F11,tKategorien[[Limit diast. ]:[Kat.]],2))","v":{"$error":"#N/A"}},{"$f":"MAX(VLOOKUP(Report_4W!H11,tKategorien[],3),VLOOKUP(Report_4W!I11,tKategorien[[Limit diast. ]:[Kat.]],2))","v":{"$error":"#N/A"}},null,null,null,"2019-04-24","Morgen",{"$f":"INT(H11)+0.25","v":43579.25},{"$f":"VLOOKUP(tSequence[[#This Row],[Datum2]],tData[[Sort]:[Puls]],2,FALSE)","v":{"$error":"#N/A"}},{"$f":"VLOOKUP(tSequence[[#This Row],[Datum2]],tData[[Sort]:[Puls]],3,FALSE)","v":{"$error":"#N/A"}},{"$f":"VLOOKUP(tSequence[[#This Row],[Datum2]],tData[[Sort]:[Puls]],4,FALSE)","v":{"$error":"#N/A"}},{"$f":"MAX(VLOOKUP($K11,tKategorien[],3),VLOOKUP($L11,tKategorien[[Limit diast. ]:[Kat.]],2))","v":{"$error":"#N/A"}},{"$f":"MAX(VLOOKUP($K12,tKategorien[],3),VLOOKUP($L12,tKategorien[[Limit diast. ]:[Kat.]],2))","v":{"$error":"#N/A"}},{"$f":"MAX(VLOOKUP($K13,tKategorien[],3),VLOOKUP($L13,tKategorien[[Limit diast. ]:[Kat.]],2))","v":{"$error":"#N/A"}}]
[null,{"$f":"MAX(VLOOKUP(Report_4W!B12,tKategorien[],3),VLOOKUP(Report_4W!C12,tKategorien[[Limit diast. ]:[Kat.]],2))","v":{"$error":"#N/A"}},{"$f":"MAX(VLOOKUP(Report_4W!E12,tKategorien[],3),VLOOKUP(Report_4W!F12,tKategorien[[Limit diast. ]:[Kat.]],2))","v":{"$error":"#N/A"}},{"$f":"MAX(VLOOKUP(Report_4W!H12,tKategorien[],3),VLOOKUP(Report_4W!I12,tKategorien[[Limit diast. ]:[Kat.]],2))","v":{"$error":"#N/A"}},null,null,null,"2019-04-24","Mittag",{"$f":"INT(H12)+0.5","v":43579.5},{"$f":"VLOOKUP(tSequence[[#This Row],[Datum2]],tData[[Sort]:[Puls]],2,FALSE)","v":{"$error":"#N/A"}},{"$f":"VLOOKUP(tSequence[[#This Row],[Datum2]],tData[[Sort]:[Puls]],3,FALSE)","v":{"$error":"#N/A"}},{"$f":"VLOOKUP(tSequence[[#This Row],[Datum2]],tData[[Sort]:[Puls]],4,FALSE)","v":{"$error":"#N/A"}},null,null,null,null,null,null,{"$f":"WEEKNUM(Start_4W,21)+1&\"/\"&YEAR(Start_4W)","v":"18/2019"},"Morgens",{"$f":"COUNTIF(intermediate!$N$26:$N$46,V$4)","v":0},{"$f":"COUNTIF(intermediate!$N$26:$N$46,W$4)","v":0},{"$f":"COUNTIF(intermediate!$N$26:$N$46,X$4)","v":0},{"$f":"COUNTIF(intermediate!$N$26:$N$46,Y$4)","v":0},{"$f":"COUNTIF(intermediate!$N$26:$N$46,Z$4)","v":0},{"$f":"COUNTIF(intermediate!$N$26:$N$46,AA$4)","v":0}]
[null,{"$f":"MAX(VLOOKUP(Report_4W!B13,tKategorien[],3),VLOOKUP(Report_4W!C13,tKategorien[[Limit diast. ]:[Kat.]],2))","v":{"$error":"#N/A"}},{"$f":"MAX(VLOOKUP(Report_4W!E13,tKategorien[],3),VLOOKUP(Report_4W!F13,tKategorien[[Limit diast. ]:[Kat.]],2))","v":{"$error":"#N/A"}},{"$f":"MAX(VLOOKUP(Report_4W!H13,tKategorien[],3),VLOOKUP(Report_4W!I13,tKategorien[[Limit diast. ]:[Kat.]],2))","v":{"$error":"#N/A"}},null,null,null,"2019-04-24","Abend",{"$f":"INT(H13)+0.75","v":43579.75},{"$f":"VLOOKUP(tSequence[[#This Row],[Datum2]],tData[[Sort]:[Puls]],2,FALSE)","v":{"$error":"#N/A"}},{"$f":"VLOOKUP(tSequence[[#This Row],[Datum2]],tData[[Sort]:[Puls]],3,FALSE)","v":{"$error":"#N/A"}},{"$f":"VLOOKUP(tSequence[[#This Row],[Datum2]],tData[[Sort]:[Puls]],4,FALSE)","v":{"$error":"#N/A"}},null,null,null,null,null,null,null,"Mittags",null,null,null,null,null,null,{"$f":"COUNTIF(intermediate!$O$26:$O$46,AB$4)","v":0},{"$f":"COUNTIF(intermediate!$O$26:$O$46,AC$4)","v":0},{"$f":"COUNTIF(intermediate!$O$26:$O$46,AD$4)","v":0},{"$f":"COUNTIF(intermediate!$O$26:$O$46,AE$4)","v":0},{"$f":"COUNTIF(intermediate!$O$26:$O$46,AF$4)","v":0},{"$f":"COUNTIF(intermediate!$O$26:$O$46,AG$4)","v":0}]
[null,{"$f":"MAX(VLOOKUP(Report_4W!B14,tKategorien[],3),VLOOKUP(Report_4W!C14,tKategorien[[Limit diast. ]:[Kat.]],2))","v":{"$error":"#N/A"}},{"$f":"MAX(VLOOKUP(Report_4W!E14,tKategorien[],3),VLOOKUP(Report_4W!F14,tKategorien[[Limit diast. ]:[Kat.]],2))","v":{"$error":"#N/A"}},{"$f":"MAX(VLOOKUP(Report_4W!H14,tKategorien[],3),VLOOKUP(Report_4W!I14,tKategorien[[Limit diast. ]:[Kat.]],2))","v":{"$error":"#N/A"}},null,null,null,"2019-04-25","Morgen",{"$f":"INT(H14)+0.25","v":43580.25},{"$f":"VLOOKUP(tSequence[[#This Row],[Datum2]],tData[[Sort]:[Puls]],2,FALSE)","v":{"$error":"#N/A"}},{"$f":"VLOOKUP(tSequence[[#This Row],[Datum2]],tData[[Sort]:[Puls]],3,FALSE)","v":{"$error":"#N/A"}},{"$f":"VLOOKUP(tSequence[[#This Row],[Datum2]],tData[[Sort]:[Puls]],4,FALSE)","v":{"$error":"#N/A"}},{"$f":"MAX(VLOOKUP($K14,tKategorien[],3),VLOOKUP($L14,tKategorien[[Limit diast. ]:[Kat.]],2))","v":{"$error":"#N/A"}},{"$f":"MAX(VLOOKUP($K15,tKategorien[],3),VLOOKUP($L15,tKategorien[[Limit diast. ]:[Kat.]],2))","v":{"$error":"#N/A"}},{"$f":"MAX(VLOOKUP($K16,tKategorien[],3),VLOOKUP($L16,tKategorien[[Limit diast. ]:[Kat.]],2))","v":{"$error":"#N/A"}},null,null,null,null,"Abends",null,null,null,null,null,null,null,null,null,null,null,null,{"$f":"COUNTIF(intermediate!$P$26:$P$46,AH$4)","v":0},{"$f":"COUNTIF(intermediate!$P$26:$P$46,AI$4)","v":0},{"$f":"COUNTIF(intermediate!$P$26:$P$46,AJ$4)","v":0},{"$f":"COUNTIF(intermediate!$P$26:$P$46,AK$4)","v":0},{"$f":"COUNTIF(intermediate!$P$26:$P$46,AL$4)","v":0},{"$f":"COUNTIF(intermediate!$P$26:$P$46,AM$4)","v":0}]
[null,{"$f":"MAX(VLOOKUP(Report_4W!B15,tKategorien[],3),VLOOKUP(Report_4W!C15,tKategorien[[Limit diast. ]:[Kat.]],2))","v":{"$error":"#N/A"}},{"$f":"MAX(VLOOKUP(Report_4W!E15,tKategorien[],3),VLOOKUP(Report_4W!F15,tKategorien[[Limit diast. ]:[Kat.]],2))","v":{"$error":"#N/A"}},{"$f":"MAX(VLOOKUP(Report_4W!H15,tKategorien[],3),VLOOKUP(Report_4W!I15,tKategorien[[Limit diast. ]:[Kat.]],2))","v":{"$error":"#N/A"}},null,null,null,"2019-04-25","Mittag",{"$f":"INT(H15)+0.5","v":43580.5},{"$f":"VLOOKUP(tSequence[[#This Row],[Datum2]],tData[[Sort]:[Puls]],2,FALSE)","v":{"$error":"#N/A"}},{"$f":"VLOOKUP(tSequence[[#This Row],[Datum2]],tData[[Sort]:[Puls]],3,FALSE)","v":{"$error":"#N/A"}},{"$f":"VLOOKUP(tSequence[[#This Row],[Datum2]],tData[[Sort]:[Puls]],4,FALSE)","v":{"$error":"#N/A"}}]
[null,{"$f":"MAX(VLOOKUP(Report_4W!B16,tKategorien[],3),VLOOKUP(Report_4W!C16,tKategorien[[Limit diast. ]:[Kat.]],2))","v":{"$error":"#N/A"}},{"$f":"MAX(VLOOKUP(Report_4W!E16,tKategorien[],3),VLOOKUP(Report_4W!F16,tKategorien[[Limit diast. ]:[Kat.]],2))","v":{"$error":"#N/A"}},{"$f":"MAX(VLOOKUP(Report_4W!H16,tKategorien[],3),VLOOKUP(Report_4W!I16,tKategorien[[Limit diast. ]:[Kat.]],2))","v":{"$error":"#N/A"}},null,null,null,"2019-04-25","Abend",{"$f":"INT(H16)+0.75","v":43580.75},{"$f":"VLOOKUP(tSequence[[#This Row],[Datum2]],tData[[Sort]:[Puls]],2,FALSE)","v":{"$error":"#N/A"}},{"$f":"VLOOKUP(tSequence[[#This Row],[Datum2]],tData[[Sort]:[Puls]],3,FALSE)","v":{"$error":"#N/A"}},{"$f":"VLOOKUP(tSequence[[#This Row],[Datum2]],tData[[Sort]:[Puls]],4,FALSE)","v":{"$error":"#N/A"}},null,null,null,null,null,null,{"$f":"WEEKNUM(Start_4W,21)+2&\"/\"&YEAR(Start_4W)","v":"19/2019"},"Morgens",{"$f":"COUNTIF(intermediate!$N$47:$N$67,V$4)","v":0},{"$f":"COUNTIF(intermediate!$N$47:$N$67,W$4)","v":0},{"$f":"COUNTIF(intermediate!$N$47:$N$67,X$4)","v":0},{"$f":"COUNTIF(intermediate!$N$47:$N$67,Y$4)","v":0},{"$f":"COUNTIF(intermediate!$N$47:$N$67,Z$4)","v":0},{"$f":"COUNTIF(intermediate!$N$47:$N$67,AA$4)","v":0}]
[null,{"$f":"MAX(VLOOKUP(Report_4W!B17,tKategorien[],3),VLOOKUP(Report_4W!C17,tKategorien[[Limit diast. ]:[Kat.]],2))","v":{"$error":"#N/A"}},{"$f":"MAX(VLOOKUP(Report_4W!E17,tKategorien[],3),VLOOKUP(Report_4W!F17,tKategorien[[Limit diast. ]:[Kat.]],2))","v":{"$error":"#N/A"}},{"$f":"MAX(VLOOKUP(Report_4W!H17,tKategorien[],3),VLOOKUP(Report_4W!I17,tKategorien[[Limit diast. ]:[Kat.]],2))","v":{"$error":"#N/A"}},null,null,null,"2019-04-26","Morgen",{"$f":"INT(H17)+0.25","v":43581.25},{"$f":"VLOOKUP(tSequence[[#This Row],[Datum2]],tData[[Sort]:[Puls]],2,FALSE)","v":{"$error":"#N/A"}},{"$f":"VLOOKUP(tSequence[[#This Row],[Datum2]],tData[[Sort]:[Puls]],3,FALSE)","v":{"$error":"#N/A"}},{"$f":"VLOOKUP(tSequence[[#This Row],[Datum2]],tData[[Sort]:[Puls]],4,FALSE)","v":{"$error":"#N/A"}},{"$f":"MAX(VLOOKUP($K17,tKategorien[],3),VLOOKUP($L17,tKategorien[[Limit diast. ]:[Kat.]],2))","v":{"$error":"#N/A"}},{"$f":"MAX(VLOOKUP($K18,tKategorien[],3),VLOOKUP($L18,tKategorien[[Limit diast. ]:[Kat.]],2))","v":{"$error":"#N/A"}},{"$f":"MAX(VLOOKUP($K19,tKategorien[],3),VLOOKUP($L19,tKategorien[[Limit diast. ]:[Kat.]],2))","v":{"$error":"#N/A"}},null,null,null,null,"Mittags",null,null,null,null,null,null,{"$f":"COUNTIF(intermediate!$O$47:$O$67,AB$4)","v":0},{"$f":"COUNTIF(intermediate!$O$47:$O$67,AC$4)","v":0},{"$f":"COUNTIF(intermediate!$O$47:$O$67,AD$4)","v":0},{"$f":"COUNTIF(intermediate!$O$47:$O$67,AE$4)","v":0},{"$f":"COUNTIF(intermediate!$O$47:$O$67,AF$4)","v":0},{"$f":"COUNTIF(intermediate!$O$47:$O$67,AG$4)","v":0}]
[null,{"$f":"MAX(VLOOKUP(Report_4W!B18,tKategorien[],3),VLOOKUP(Report_4W!C18,tKategorien[[Limit diast. ]:[Kat.]],2))","v":{"$error":"#N/A"}},{"$f":"MAX(VLOOKUP(Report_4W!E18,tKategorien[],3),VLOOKUP(Report_4W!F18,tKategorien[[Limit diast. ]:[Kat.]],2))","v":{"$error":"#N/A"}},{"$f":"MAX(VLOOKUP(Report_4W!H18,tKategorien[],3),VLOOKUP(Report_4W!I18,tKategorien[[Limit diast. ]:[Kat.]],2))","v":{"$error":"#N/A"}},null,null,null,"2019-04-26","Mittag",{"$f":"INT(H18)+0.5","v":43581.5},{"$f":"VLOOKUP(tSequence[[#This Row],[Datum2]],tData[[Sort]:[Puls]],2,FALSE)","v":{"$error":"#N/A"}},{"$f":"VLOOKUP(tSequence[[#This Row],[Datum2]],tData[[Sort]:[Puls]],3,FALSE)","v":{"$error":"#N/A"}},{"$f":"VLOOKUP(tSequence[[#This Row],[Datum2]],tData[[Sort]:[Puls]],4,FALSE)","v":{"$error":"#N/A"}},null,null,null,null,null,null,null,"Abends",null,null,null,null,null,null,null,null,null,null,null,null,{"$f":"COUNTIF(intermediate!$P$47:$P$67,AH$4)","v":0},{"$f":"COUNTIF(intermediate!$P$47:$P$67,AI$4)","v":0},{"$f":"COUNTIF(intermediate!$P$47:$P$67,AJ$4)","v":0},{"$f":"COUNTIF(intermediate!$P$47:$P$67,AK$4)","v":0},{"$f":"COUNTIF(intermediate!$P$47:$P$67,AL$4)","v":0},{"$f":"COUNTIF(intermediate!$P$47:$P$67,AM$4)","v":0}]
[null,{"$f":"MAX(VLOOKUP(Report_4W!B19,tKategorien[],3),VLOOKUP(Report_4W!C19,tKategorien[[Limit diast. ]:[Kat.]],2))","v":{"$error":"#N/A"}},{"$f":"MAX(VLOOKUP(Report_4W!E19,tKategorien[],3),VLOOKUP(Report_4W!F19,tKategorien[[Limit diast. ]:[Kat.]],2))","v":{"$error":"#N/A"}},{"$f":"MAX(VLOOKUP(Report_4W!H19,tKategorien[],3),VLOOKUP(Report_4W!I19,tKategorien[[Limit diast. ]:[Kat.]],2))","v":{"$error":"#N/A"}},null,null,null,"2019-04-26","Abend",{"$f":"INT(H19)+0.75","v":43581.75},{"$f":"VLOOKUP(tSequence[[#This Row],[Datum2]],tData[[Sort]:[Puls]],2,FALSE)","v":{"$error":"#N/A"}},{"$f":"VLOOKUP(tSequence[[#This Row],[Datum2]],tData[[Sort]:[Puls]],3,FALSE)","v":{"$error":"#N/A"}},{"$f":"VLOOKUP(tSequence[[#This Row],[Datum2]],tData[[Sort]:[Puls]],4,FALSE)","v":{"$error":"#N/A"}}]
[null,{"$f":"MAX(VLOOKUP(Report_4W!B20,tKategorien[],3),VLOOKUP(Report_4W!C20,tKategorien[[Limit diast. ]:[Kat.]],2))","v":{"$error":"#N/A"}},{"$f":"MAX(VLOOKUP(Report_4W!E20,tKategorien[],3),VLOOKUP(Report_4W!F20,tKategorien[[Limit diast. ]:[Kat.]],2))","v":{"$error":"#N/A"}},{"$f":"MAX(VLOOKUP(Report_4W!H20,tKategorien[],3),VLOOKUP(Report_4W!I20,tKategorien[[Limit diast. ]:[Kat.]],2))","v":{"$error":"#N/A"}},null,null,null,"2019-04-27","Morgen",{"$f":"INT(H20)+0.25","v":43582.25},{"$f":"VLOOKUP(tSequence[[#This Row],[Datum2]],tData[[Sort]:[Puls]],2,FALSE)","v":{"$error":"#N/A"}},{"$f":"VLOOKUP(tSequence[[#This Row],[Datum2]],tData[[Sort]:[Puls]],3,FALSE)","v":{"$error":"#N/A"}},{"$f":"VLOOKUP(tSequence[[#This Row],[Datum2]],tData[[Sort]:[Puls]],4,FALSE)","v":{"$error":"#N/A"}},{"$f":"MAX(VLOOKUP($K20,tKategorien[],3),VLOOKUP($L20,tKategorien[[Limit diast. ]:[Kat.]],2))","v":{"$error":"#N/A"}},{"$f":"MAX(VLOOKUP($K21,tKategorien[],3),VLOOKUP($L21,tKategorien[[Limit diast. ]:[Kat.]],2))","v":{"$error":"#N/A"}},{"$f":"MAX(VLOOKUP($K22,tKategorien[],3),VLOOKUP($L22,tKategorien[[Limit diast. ]:[Kat.]],2))","v":{"$error":"#N/A"}},null,null,null,{"$f":"WEEKNUM(Start_4W,21)+3&\"/\"&YEAR(Start_4W)","v":"20/2019"},"Morgens",{"$f":"COUNTIF(intermediate!$N$68:$N$88,V$4)","v":0},{"$f":"COUNTIF(intermediate!$N$68:$N$88,W$4)","v":0},{"$f":"COUNTIF(intermediate!$N$68:$N$88,X$4)","v":0},{"$f":"COUNTIF(intermediate!$N$68:$N$88,Y$4)","v":0},{"$f":"COUNTIF(intermediate!$N$68:$N$88,Z$4)","v":0},{"$f":"COUNTIF(intermediate!$N$68:$N$88,AA$4)","v":0}]
[null,{"$f":"MAX(VLOOKUP(Report_4W!B21,tKategorien[],3),VLOOKUP(Report_4W!C21,tKategorien[[Limit diast. ]:[Kat.]],2))","v":{"$error":"#N/A"}},{"$f":"MAX(VLOOKUP(Report_4W!E21,tKategorien[],3),VLOOKUP(Report_4W!F21,tKategorien[[Limit diast. ]:[Kat.]],2))","v":{"$error":"#N/A"}},{"$f":"MAX(VLOOKUP(Report_4W!H21,tKategorien[],3),VLOOKUP(Report_4W!I21,tKategorien[[Limit diast. ]:[Kat.]],2))","v":{"$error":"#N/A"}},null,null,null,"2019-04-27","Mittag",{"$f":"INT(H21)+0.5","v":43582.5},{"$f":"VLOOKUP(tSequence[[#This Row],[Datum2]],tData[[Sort]:[Puls]],2,FALSE)","v":{"$error":"#N/A"}},{"$f":"VLOOKUP(tSequence[[#This Row],[Datum2]],tData[[Sort]:[Puls]],3,FALSE)","v":{"$error":"#N/A"}},{"$f":"VLOOKUP(tSequence[[#This Row],[Datum2]],tData[[Sort]:[Puls]],4,FALSE)","v":{"$error":"#N/A"}},null,null,null,null,null,null,null,"Mittags",null,null,null,null,null,null,{"$f":"COUNTIF(intermediate!$O$68:$O$88,AB$4)","v":0},{"$f":"COUNTIF(intermediate!$O$68:$O$88,AC$4)","v":0},{"$f":"COUNTIF(intermediate!$O$68:$O$88,AD$4)","v":0},{"$f":"COUNTIF(intermediate!$O$68:$O$88,AE$4)","v":0},{"$f":"COUNTIF(intermediate!$O$68:$O$88,AF$4)","v":0},{"$f":"COUNTIF(intermediate!$O$68:$O$88,AG$4)","v":0}]
[null,{"$f":"MAX(VLOOKUP(Report_4W!B22,tKategorien[],3),VLOOKUP(Report_4W!C22,tKategorien[[Limit diast. ]:[Kat.]],2))","v":{"$error":"#N/A"}},{"$f":"MAX(VLOOKUP(Report_4W!E22,tKategorien[],3),VLOOKUP(Report_4W!F22,tKategorien[[Limit diast. ]:[Kat.]],2))","v":{"$error":"#N/A"}},{"$f":"MAX(VLOOKUP(Report_4W!H22,tKategorien[],3),VLOOKUP(Report_4W!I22,tKategorien[[Limit diast. ]:[Kat.]],2))","v":{"$error":"#N/A"}},null,null,null,"2019-04-27","Abend",{"$f":"INT(H22)+0.75","v":43582.75},{"$f":"VLOOKUP(tSequence[[#This Row],[Datum2]],tData[[Sort]:[Puls]],2,FALSE)","v":{"$error":"#N/A"}},{"$f":"VLOOKUP(tSequence[[#This Row],[Datum2]],tData[[Sort]:[Puls]],3,FALSE)","v":{"$error":"#N/A"}},{"$f":"VLOOKUP(tSequence[[#This Row],[Datum2]],tData[[Sort]:[Puls]],4,FALSE)","v":{"$error":"#N/A"}},null,null,null,null,null,null,null,"Abends",null,null,null,null,null,null,null,null,null,null,null,null,{"$f":"COUNTIF(intermediate!$P$68:$P$88,AH$4)","v":0},{"$f":"COUNTIF(intermediate!$P$68:$P$88,AI$4)","v":0},{"$f":"COUNTIF(intermediate!$P$68:$P$88,AJ$4)","v":0},{"$f":"COUNTIF(intermediate!$P$68:$P$88,AK$4)","v":0},{"$f":"COUNTIF(intermediate!$P$68:$P$88,AL$4)","v":0},{"$f":"COUNTIF(intermediate!$P$68:$P$88,AM$4)","v":0}]
[null,{"$f":"MAX(VLOOKUP(Report_4W!B23,tKategorien[],3),VLOOKUP(Report_4W!C23,tKategorien[[Limit diast. ]:[Kat.]],2))","v":{"$error":"#N/A"}},{"$f":"MAX(VLOOKUP(Report_4W!E23,tKategorien[],3),VLOOKUP(Report_4W!F23,tKategorien[[Limit diast. ]:[Kat.]],2))","v":{"$error":"#N/A"}},{"$f":"MAX(VLOOKUP(Report_4W!H23,tKategorien[],3),VLOOKUP(Report_4W!I23,tKategorien[[Limit diast. ]:[Kat.]],2))","v":{"$error":"#N/A"}},null,null,null,"2019-04-28","Morgen",{"$f":"INT(H23)+0.25","v":43583.25},{"$f":"VLOOKUP(tSequence[[#This Row],[Datum2]],tData[[Sort]:[Puls]],2,FALSE)","v":{"$error":"#N/A"}},{"$f":"VLOOKUP(tSequence[[#This Row],[Datum2]],tData[[Sort]:[Puls]],3,FALSE)","v":{"$error":"#N/A"}},{"$f":"VLOOKUP(tSequence[[#This Row],[Datum2]],tData[[Sort]:[Puls]],4,FALSE)","v":{"$error":"#N/A"}},{"$f":"MAX(VLOOKUP($K23,tKategorien[],3),VLOOKUP($L23,tKategorien[[Limit diast. ]:[Kat.]],2))","v":{"$error":"#N/A"}},{"$f":"MAX(VLOOKUP($K24,tKategorien[],3),VLOOKUP($L24,tKategorien[[Limit diast. ]:[Kat.]],2))","v":{"$error":"#N/A"}},{"$f":"MAX(VLOOKUP($K25,tKategorien[],3),VLOOKUP($L25,tKategorien[[Limit diast. ]:[Kat.]],2))","v":{"$error":"#N/A"}}]
[null,{"$f":"MAX(VLOOKUP(Report_4W!B24,tKategorien[],3),VLOOKUP(Report_4W!C24,tKategorien[[Limit diast. ]:[Kat.]],2))","v":{"$error":"#N/A"}},{"$f":"MAX(VLOOKUP(Report_4W!E24,tKategorien[],3),VLOOKUP(Report_4W!F24,tKategorien[[Limit diast. ]:[Kat.]],2))","v":{"$error":"#N/A"}},{"$f":"MAX(VLOOKUP(Report_4W!H24,tKategorien[],3),VLOOKUP(Report_4W!I24,tKategorien[[Limit diast. ]:[Kat.]],2))","v":{"$error":"#N/A"}},null,null,null,"2019-04-28","Mittag",{"$f":"INT(H24)+0.5","v":43583.5},{"$f":"VLOOKUP(tSequence[[#This Row],[Datum2]],tData[[Sort]:[Puls]],2,FALSE)","v":{"$error":"#N/A"}},{"$f":"VLOOKUP(tSequence[[#This Row],[Datum2]],tData[[Sort]:[Puls]],3,FALSE)","v":{"$error":"#N/A"}},{"$f":"VLOOKUP(tSequence[[#This Row],[Datum2]],tData[[Sort]:[Puls]],4,FALSE)","v":{"$error":"#N/A"}}]
[null,{"$f":"MAX(VLOOKUP(Report_4W!B25,tKategorien[],3),VLOOKUP(Report_4W!C25,tKategorien[[Limit diast. ]:[Kat.]],2))","v":{"$error":"#N/A"}},{"$f":"MAX(VLOOKUP(Report_4W!E25,tKategorien[],3),VLOOKUP(Report_4W!F25,tKategorien[[Limit diast. ]:[Kat.]],2))","v":{"$error":"#N/A"}},{"$f":"MAX(VLOOKUP(Report_4W!H25,tKategorien[],3),VLOOKUP(Report_4W!I25,tKategorien[[Limit diast. ]:[Kat.]],2))","v":{"$error":"#N/A"}},null,null,null,"2019-04-28","Abend",{"$f":"INT(H25)+0.75","v":43583.75},{"$f":"VLOOKUP(tSequence[[#This Row],[Datum2]],tData[[Sort]:[Puls]],2,FALSE)","v":{"$error":"#N/A"}},{"$f":"VLOOKUP(tSequence[[#This Row],[Datum2]],tData[[Sort]:[Puls]],3,FALSE)","v":{"$error":"#N/A"}},{"$f":"VLOOKUP(tSequence[[#This Row],[Datum2]],tData[[Sort]:[Puls]],4,FALSE)","v":{"$error":"#N/A"}}]
[null,{"$f":"MAX(VLOOKUP(Report_4W!B26,tKategorien[],3),VLOOKUP(Report_4W!C26,tKategorien[[Limit diast. ]:[Kat.]],2))","v":{"$error":"#N/A"}},{"$f":"MAX(VLOOKUP(Report_4W!E26,tKategorien[],3),VLOOKUP(Report_4W!F26,tKategorien[[Limit diast. ]:[Kat.]],2))","v":{"$error":"#N/A"}},{"$f":"MAX(VLOOKUP(Report_4W!H26,tKategorien[],3),VLOOKUP(Report_4W!I26,tKategorien[[Limit diast. ]:[Kat.]],2))","v":{"$error":"#N/A"}},null,null,null,"2019-04-29","Morgen",{"$f":"INT(H26)+0.25","v":43584.25},{"$f":"VLOOKUP(tSequence[[#This Row],[Datum2]],tData[[Sort]:[Puls]],2,FALSE)","v":{"$error":"#N/A"}},{"$f":"VLOOKUP(tSequence[[#This Row],[Datum2]],tData[[Sort]:[Puls]],3,FALSE)","v":{"$error":"#N/A"}},{"$f":"VLOOKUP(tSequence[[#This Row],[Datum2]],tData[[Sort]:[Puls]],4,FALSE)","v":{"$error":"#N/A"}},{"$f":"MAX(VLOOKUP($K26,tKategorien[],3),VLOOKUP($L26,tKategorien[[Limit diast. ]:[Kat.]],2))","v":{"$error":"#N/A"}},{"$f":"MAX(VLOOKUP($K27,tKategorien[],3),VLOOKUP($L27,tKategorien[[Limit diast. ]:[Kat.]],2))","v":{"$error":"#N/A"}},{"$f":"MAX(VLOOKUP($K28,tKategorien[],3),VLOOKUP($L28,tKategorien[[Limit diast. ]:[Kat.]],2))","v":{"$error":"#N/A"}}]
[null,{"$f":"MAX(VLOOKUP(Report_4W!B27,tKategorien[],3),VLOOKUP(Report_4W!C27,tKategorien[[Limit diast. ]:[Kat.]],2))","v":{"$error":"#N/A"}},{"$f":"MAX(VLOOKUP(Report_4W!E27,tKategorien[],3),VLOOKUP(Report_4W!F27,tKategorien[[Limit diast. ]:[Kat.]],2))","v":{"$error":"#N/A"}},{"$f":"MAX(VLOOKUP(Report_4W!H27,tKategorien[],3),VLOOKUP(Report_4W!I27,tKategorien[[Limit diast. ]:[Kat.]],2))","v":{"$error":"#N/A"}},null,null,null,"2019-04-29","Mittag",{"$f":"INT(H27)+0.5","v":43584.5},{"$f":"VLOOKUP(tSequence[[#This Row],[Datum2]],tData[[Sort]:[Puls]],2,FALSE)","v":{"$error":"#N/A"}},{"$f":"VLOOKUP(tSequence[[#This Row],[Datum2]],tData[[Sort]:[Puls]],3,FALSE)","v":{"$error":"#N/A"}},{"$f":"VLOOKUP(tSequence[[#This Row],[Datum2]],tData[[Sort]:[Puls]],4,FALSE)","v":{"$error":"#N/A"}}]
[null,{"$f":"MAX(VLOOKUP(Report_4W!B28,tKategorien[],3),VLOOKUP(Report_4W!C28,tKategorien[[Limit diast. ]:[Kat.]],2))","v":{"$error":"#N/A"}},{"$f":"MAX(VLOOKUP(Report_4W!E28,tKategorien[],3),VLOOKUP(Report_4W!F28,tKategorien[[Limit diast. ]:[Kat.]],2))","v":{"$error":"#N/A"}},{"$f":"MAX(VLOOKUP(Report_4W!H28,tKategorien[],3),VLOOKUP(Report_4W!I28,tKategorien[[Limit diast. ]:[Kat.]],2))","v":{"$error":"#N/A"}},null,null,null,"2019-04-29","Abend",{"$f":"INT(H28)+0.75","v":43584.75},{"$f":"VLOOKUP(tSequence[[#This Row],[Datum2]],tData[[Sort]:[Puls]],2,FALSE)","v":{"$error":"#N/A"}},{"$f":"VLOOKUP(tSequence[[#This Row],[Datum2]],tData[[Sort]:[Puls]],3,FALSE)","v":{"$error":"#N/A"}},{"$f":"VLOOKUP(tSequence[[#This Row],[Datum2]],tData[[Sort]:[Puls]],4,FALSE)","v":{"$error":"#N/A"}}]
[null,{"$f":"MAX(VLOOKUP(Report_4W!B29,tKategorien[],3),VLOOKUP(Report_4W!C29,tKategorien[[Limit diast. ]:[Kat.]],2))","v":{"$error":"#N/A"}},{"$f":"MAX(VLOOKUP(Report_4W!E29,tKategorien[],3),VLOOKUP(Report_4W!F29,tKategorien[[Limit diast. ]:[Kat.]],2))","v":{"$error":"#N/A"}},{"$f":"MAX(VLOOKUP(Report_4W!H29,tKategorien[],3),VLOOKUP(Report_4W!I29,tKategorien[[Limit diast. ]:[Kat.]],2))","v":{"$error":"#N/A"}},null,null,null,"2019-04-30","Morgen",{"$f":"INT(H29)+0.25","v":43585.25},{"$f":"VLOOKUP(tSequence[[#This Row],[Datum2]],tData[[Sort]:[Puls]],2,FALSE)","v":{"$error":"#N/A"}},{"$f":"VLOOKUP(tSequence[[#This Row],[Datum2]],tData[[Sort]:[Puls]],3,FALSE)","v":{"$error":"#N/A"}},{"$f":"VLOOKUP(tSequence[[#This Row],[Datum2]],tData[[Sort]:[Puls]],4,FALSE)","v":{"$error":"#N/A"}},{"$f":"MAX(VLOOKUP($K29,tKategorien[],3),VLOOKUP($L29,tKategorien[[Limit diast. ]:[Kat.]],2))","v":{"$error":"#N/A"}},{"$f":"MAX(VLOOKUP($K30,tKategorien[],3),VLOOKUP($L30,tKategorien[[Limit diast. ]:[Kat.]],2))","v":{"$error":"#N/A"}},{"$f":"MAX(VLOOKUP($K31,tKategorien[],3),VLOOKUP($L31,tKategorien[[Limit diast. ]:[Kat.]],2))","v":{"$error":"#N/A"}}]
[null,{"$f":"MAX(VLOOKUP(Report_4W!B30,tKategorien[],3),VLOOKUP(Report_4W!C30,tKategorien[[Limit diast. ]:[Kat.]],2))","v":{"$error":"#N/A"}},{"$f":"MAX(VLOOKUP(Report_4W!E30,tKategorien[],3),VLOOKUP(Report_4W!F30,tKategorien[[Limit diast. ]:[Kat.]],2))","v":{"$error":"#N/A"}},{"$f":"MAX(VLOOKUP(Report_4W!H30,tKategorien[],3),VLOOKUP(Report_4W!I30,tKategorien[[Limit diast. ]:[Kat.]],2))","v":{"$error":"#N/A"}},null,null,null,"2019-04-30","Mittag",{"$f":"INT(H30)+0.5","v":43585.5},{"$f":"VLOOKUP(tSequence[[#This Row],[Datum2]],tData[[Sort]:[Puls]],2,FALSE)","v":{"$error":"#N/A"}},{"$f":"VLOOKUP(tSequence[[#This Row],[Datum2]],tData[[Sort]:[Puls]],3,FALSE)","v":{"$error":"#N/A"}},{"$f":"VLOOKUP(tSequence[[#This Row],[Datum2]],tData[[Sort]:[Puls]],4,FALSE)","v":{"$error":"#N/A"}}]
[null,{"$f":"MAX(VLOOKUP(Report_4W!B31,tKategorien[],3),VLOOKUP(Report_4W!C31,tKategorien[[Limit diast. ]:[Kat.]],2))","v":{"$error":"#N/A"}},{"$f":"MAX(VLOOKUP(Report_4W!E31,tKategorien[],3),VLOOKUP(Report_4W!F31,tKategorien[[Limit diast. ]:[Kat.]],2))","v":{"$error":"#N/A"}},{"$f":"MAX(VLOOKUP(Report_4W!H31,tKategorien[],3),VLOOKUP(Report_4W!I31,tKategorien[[Limit diast. ]:[Kat.]],2))","v":{"$error":"#N/A"}},null,null,null,"2019-04-30","Abend",{"$f":"INT(H31)+0.75","v":43585.75},{"$f":"VLOOKUP(tSequence[[#This Row],[Datum2]],tData[[Sort]:[Puls]],2,FALSE)","v":{"$error":"#N/A"}},{"$f":"VLOOKUP(tSequence[[#This Row],[Datum2]],tData[[Sort]:[Puls]],3,FALSE)","v":{"$error":"#N/A"}},{"$f":"VLOOKUP(tSequence[[#This Row],[Datum2]],tData[[Sort]:[Puls]],4,FALSE)","v":{"$error":"#N/A"}}]
[null,{"$f":"MAX(VLOOKUP(Report_4W!#REF!,tKategorien[],3),VLOOKUP(Report_4W!#REF!,tKategorien[[Limit diast. ]:[Kat.]],2))","v":{"$error":"#REF!"}},{"$f":"MAX(VLOOKUP(Report_4W!#REF!,tKategorien[],3),VLOOKUP(Report_4W!#REF!,tKategorien[[Limit diast. ]:[Kat.]],2))","v":{"$error":"#REF!"}},{"$f":"MAX(VLOOKUP(Report_4W!#REF!,tKategorien[],3),VLOOKUP(Report_4W!#REF!,tKategorien[[Limit diast. ]:[Kat.]],2))","v":{"$error":"#REF!"}},null,null,null,"2019-05-01","Morgen",{"$f":"INT(H32)+0.25","v":43586.25},{"$f":"VLOOKUP(tSequence[[#This Row],[Datum2]],tData[[Sort]:[Puls]],2,FALSE)","v":{"$error":"#N/A"}},{"$f":"VLOOKUP(tSequence[[#This Row],[Datum2]],tData[[Sort]:[Puls]],3,FALSE)","v":{"$error":"#N/A"}},{"$f":"VLOOKUP(tSequence[[#This Row],[Datum2]],tData[[Sort]:[Puls]],4,FALSE)","v":{"$error":"#N/A"}},{"$f":"MAX(VLOOKUP($K32,tKategorien[],3),VLOOKUP($L32,tKategorien[[Limit diast. ]:[Kat.]],2))","v":{"$error":"#N/A"}},{"$f":"MAX(VLOOKUP($K33,tKategorien[],3),VLOOKUP($L33,tKategorien[[Limit diast. ]:[Kat.]],2))","v":{"$error":"#N/A"}},{"$f":"MAX(VLOOKUP($K34,tKategorien[],3),VLOOKUP($L34,tKategorien[[Limit diast. ]:[Kat.]],2))","v":{"$error":"#N/A"}}]
[null,{"$f":"MAX(VLOOKUP(Report_4W!#REF!,tKategorien[],3),VLOOKUP(Report_4W!#REF!,tKategorien[[Limit diast. ]:[Kat.]],2))","v":{"$error":"#REF!"}},{"$f":"MAX(VLOOKUP(Report_4W!#REF!,tKategorien[],3),VLOOKUP(Report_4W!#REF!,tKategorien[[Limit diast. ]:[Kat.]],2))","v":{"$error":"#REF!"}},{"$f":"MAX(VLOOKUP(Report_4W!#REF!,tKategorien[],3),VLOOKUP(Report_4W!#REF!,tKategorien[[Limit diast. ]:[Kat.]],2))","v":{"$error":"#REF!"}},null,null,null,"2019-05-01","Mittag",{"$f":"INT(H33)+0.5","v":43586.5},{"$f":"VLOOKUP(tSequence[[#This Row],[Datum2]],tData[[Sort]:[Puls]],2,FALSE)","v":{"$error":"#N/A"}},{"$f":"VLOOKUP(tSequence[[#This Row],[Datum2]],tData[[Sort]:[Puls]],3,FALSE)","v":{"$error":"#N/A"}},{"$f":"VLOOKUP(tSequence[[#This Row],[Datum2]],tData[[Sort]:[Puls]],4,FALSE)","v":{"$error":"#N/A"}}]
[null,{"$f":"MAX(VLOOKUP(Report_4W!#REF!,tKategorien[],3),VLOOKUP(Report_4W!#REF!,tKategorien[[Limit diast. ]:[Kat.]],2))","v":{"$error":"#REF!"}},{"$f":"MAX(VLOOKUP(Report_4W!#REF!,tKategorien[],3),VLOOKUP(Report_4W!#REF!,tKategorien[[Limit diast. ]:[Kat.]],2))","v":{"$error":"#REF!"}},{"$f":"MAX(VLOOKUP(Report_4W!#REF!,tKategorien[],3),VLOOKUP(Report_4W!#REF!,tKategorien[[Limit diast. ]:[Kat.]],2))","v":{"$error":"#REF!"}},null,null,null,"2019-05-01","Abend",{"$f":"INT(H34)+0.75","v":43586.75},{"$f":"VLOOKUP(tSequence[[#This Row],[Datum2]],tData[[Sort]:[Puls]],2,FALSE)","v":{"$error":"#N/A"}},{"$f":"VLOOKUP(tSequence[[#This Row],[Datum2]],tData[[Sort]:[Puls]],3,FALSE)","v":{"$error":"#N/A"}},{"$f":"VLOOKUP(tSequence[[#This Row],[Datum2]],tData[[Sort]:[Puls]],4,FALSE)","v":{"$error":"#N/A"}}]
[null,{"$f":"MAX(VLOOKUP(Report_4W!B32,tKategorien[],3),VLOOKUP(Report_4W!C32,tKategorien[[Limit diast. ]:[Kat.]],2))","v":{"$error":"#N/A"}},{"$f":"MAX(VLOOKUP(Report_4W!E32,tKategorien[],3),VLOOKUP(Report_4W!F32,tKategorien[[Limit diast. ]:[Kat.]],2))","v":{"$error":"#N/A"}},{"$f":"MAX(VLOOKUP(Report_4W!H32,tKategorien[],3),VLOOKUP(Report_4W!I32,tKategorien[[Limit diast. ]:[Kat.]],2))","v":{"$error":"#N/A"}},null,null,null,"2019-05-02","Morgen",{"$f":"INT(H35)+0.25","v":43587.25},{"$f":"VLOOKUP(tSequence[[#This Row],[Datum2]],tData[[Sort]:[Puls]],2,FALSE)","v":{"$error":"#N/A"}},{"$f":"VLOOKUP(tSequence[[#This Row],[Datum2]],tData[[Sort]:[Puls]],3,FALSE)","v":{"$error":"#N/A"}},{"$f":"VLOOKUP(tSequence[[#This Row],[Datum2]],tData[[Sort]:[Puls]],4,FALSE)","v":{"$error":"#N/A"}},{"$f":"MAX(VLOOKUP($K35,tKategorien[],3),VLOOKUP($L35,tKategorien[[Limit diast. ]:[Kat.]],2))","v":{"$error":"#N/A"}},{"$f":"MAX(VLOOKUP($K36,tKategorien[],3),VLOOKUP($L36,tKategorien[[Limit diast. ]:[Kat.]],2))","v":{"$error":"#N/A"}},{"$f":"MAX(VLOOKUP($K37,tKategorien[],3),VLOOKUP($L37,tKategorien[[Limit diast. ]:[Kat.]],2))","v":{"$error":"#N/A"}}]
[null,null,null,null,null,null,null,"2019-05-02","Mittag",{"$f":"INT(H36)+0.5","v":43587.5},{"$f":"VLOOKUP(tSequence[[#This Row],[Datum2]],tData[[Sort]:[Puls]],2,FALSE)","v":{"$error":"#N/A"}},{"$f":"VLOOKUP(tSequence[[#This Row],[Datum2]],tData[[Sort]:[Puls]],3,FALSE)","v":{"$error":"#N/A"}},{"$f":"VLOOKUP(tSequence[[#This Row],[Datum2]],tData[[Sort]:[Puls]],4,FALSE)","v":{"$error":"#N/A"}}]
[null,null,null,null,null,null,null,"2019-05-02","Abend",{"$f":"INT(H37)+0.75","v":43587.75},{"$f":"VLOOKUP(tSequence[[#This Row],[Datum2]],tData[[Sort]:[Puls]],2,FALSE)","v":{"$error":"#N/A"}},{"$f":"VLOOKUP(tSequence[[#This Row],[Datum2]],tData[[Sort]:[Puls]],3,FALSE)","v":{"$error":"#N/A"}},{"$f":"VLOOKUP(tSequence[[#This Row],[Datum2]],tData[[Sort]:[Puls]],4,FALSE)","v":{"$error":"#N/A"}}]
[null,null,null,null,null,null,null,{"$f":"INT($H$5+(ROW()-5)/3)","v":"2019-05-03"},"Morgen",{"$f":"INT(H38)+0.25","v":43588.25},{"$f":"VLOOKUP(tSequence[[#This Row],[Datum2]],tData[[Sort]:[Puls]],2,FALSE)","v":{"$error":"#N/A"}},{"$f":"VLOOKUP(tSequence[[#This Row],[Datum2]],tData[[Sort]:[Puls]],3,FALSE)","v":{"$error":"#N/A"}},{"$f":"VLOOKUP(tSequence[[#This Row],[Datum2]],tData[[Sort]:[Puls]],4,FALSE)","v":{"$error":"#N/A"}},{"$f":"MAX(VLOOKUP($K38,tKategorien[],3),VLOOKUP($L38,tKategorien[[Limit diast. ]:[Kat.]],2))","v":{"$error":"#N/A"}},{"$f":"MAX(VLOOKUP($K39,tKategorien[],3),VLOOKUP($L39,tKategorien[[Limit diast. ]:[Kat.]],2))","v":{"$error":"#N/A"}},{"$f":"MAX(VLOOKUP($K40,tKategorien[],3),VLOOKUP($L40,tKategorien[[Limit diast. ]:[Kat.]],2))","v":{"$error":"#N/A"}}]
[null,null,null,null,null,null,null,"2019-05-03","Mittag",{"$f":"INT(H39)+0.5","v":43588.5},{"$f":"VLOOKUP(tSequence[[#This Row],[Datum2]],tData[[Sort]:[Puls]],2,FALSE)","v":{"$error":"#N/A"}},{"$f":"VLOOKUP(tSequence[[#This Row],[Datum2]],tData[[Sort]:[Puls]],3,FALSE)","v":{"$error":"#N/A"}},{"$f":"VLOOKUP(tSequence[[#This Row],[Datum2]],tData[[Sort]:[Puls]],4,FALSE)","v":{"$error":"#N/A"}}]
[null,null,null,null,null,null,null,"2019-05-03","Abend",{"$f":"INT(H40)+0.75","v":43588.75},{"$f":"VLOOKUP(tSequence[[#This Row],[Datum2]],tData[[Sort]:[Puls]],2,FALSE)","v":{"$error":"#N/A"}},{"$f":"VLOOKUP(tSequence[[#This Row],[Datum2]],tData[[Sort]:[Puls]],3,FALSE)","v":{"$error":"#N/A"}},{"$f":"VLOOKUP(tSequence[[#This Row],[Datum2]],tData[[Sort]:[Puls]],4,FALSE)","v":{"$error":"#N/A"}}]
[null,null,null,null,null,null,null,"2019-05-04","Morgen",{"$f":"INT(H41)+0.25","v":43589.25},{"$f":"VLOOKUP(tSequence[[#This Row],[Datum2]],tData[[Sort]:[Puls]],2,FALSE)","v":{"$error":"#N/A"}},{"$f":"VLOOKUP(tSequence[[#This Row],[Datum2]],tData[[Sort]:[Puls]],3,FALSE)","v":{"$error":"#N/A"}},{"$f":"VLOOKUP(tSequence[[#This Row],[Datum2]],tData[[Sort]:[Puls]],4,FALSE)","v":{"$error":"#N/A"}},{"$f":"MAX(VLOOKUP($K41,tKategorien[],3),VLOOKUP($L41,tKategorien[[Limit diast. ]:[Kat.]],2))","v":{"$error":"#N/A"}},{"$f":"MAX(VLOOKUP($K42,tKategorien[],3),VLOOKUP($L42,tKategorien[[Limit diast. ]:[Kat.]],2))","v":{"$error":"#N/A"}},{"$f":"MAX(VLOOKUP($K43,tKategorien[],3),VLOOKUP($L43,tKategorien[[Limit diast. ]:[Kat.]],2))","v":{"$error":"#N/A"}}]
[null,null,null,null,null,null,null,"2019-05-04","Mittag",{"$f":"INT(H42)+0.5","v":43589.5},{"$f":"VLOOKUP(tSequence[[#This Row],[Datum2]],tData[[Sort]:[Puls]],2,FALSE)","v":{"$error":"#N/A"}},{"$f":"VLOOKUP(tSequence[[#This Row],[Datum2]],tData[[Sort]:[Puls]],3,FALSE)","v":{"$error":"#N/A"}},{"$f":"VLOOKUP(tSequence[[#This Row],[Datum2]],tData[[Sort]:[Puls]],4,FALSE)","v":{"$error":"#N/A"}}]
[null,null,null,null,null,null,null,"2019-05-04","Abend",{"$f":"INT(H43)+0.75","v":43589.75},{"$f":"VLOOKUP(tSequence[[#This Row],[Datum2]],tData[[Sort]:[Puls]],2,FALSE)","v":{"$error":"#N/A"}},{"$f":"VLOOKUP(tSequence[[#This Row],[Datum2]],tData[[Sort]:[Puls]],3,FALSE)","v":{"$error":"#N/A"}},{"$f":"VLOOKUP(tSequence[[#This Row],[Datum2]],tData[[Sort]:[Puls]],4,FALSE)","v":{"$error":"#N/A"}}]
[null,null,null,null,null,null,null,"2019-05-05","Morgen",{"$f":"INT(H44)+0.25","v":43590.25},{"$f":"VLOOKUP(tSequence[[#This Row],[Datum2]],tData[[Sort]:[Puls]],2,FALSE)","v":{"$error":"#N/A"}},{"$f":"VLOOKUP(tSequence[[#This Row],[Datum2]],tData[[Sort]:[Puls]],3,FALSE)","v":{"$error":"#N/A"}},{"$f":"VLOOKUP(tSequence[[#This Row],[Datum2]],tData[[Sort]:[Puls]],4,FALSE)","v":{"$error":"#N/A"}},{"$f":"MAX(VLOOKUP($K44,tKategorien[],3),VLOOKUP($L44,tKategorien[[Limit diast. ]:[Kat.]],2))","v":{"$error":"#N/A"}},{"$f":"MAX(VLOOKUP($K45,tKategorien[],3),VLOOKUP($L45,tKategorien[[Limit diast. ]:[Kat.]],2))","v":{"$error":"#N/A"}},{"$f":"MAX(VLOOKUP($K46,tKategorien[],3),VLOOKUP($L46,tKategorien[[Limit diast. ]:[Kat.]],2))","v":{"$error":"#N/A"}}]
[null,null,null,null,null,null,null,"2019-05-05","Mittag",{"$f":"INT(H45)+0.5","v":43590.5},{"$f":"VLOOKUP(tSequence[[#This Row],[Datum2]],tData[[Sort]:[Puls]],2,FALSE)","v":{"$error":"#N/A"}},{"$f":"VLOOKUP(tSequence[[#This Row],[Datum2]],tData[[Sort]:[Puls]],3,FALSE)","v":{"$error":"#N/A"}},{"$f":"VLOOKUP(tSequence[[#This Row],[Datum2]],tData[[Sort]:[Puls]],4,FALSE)","v":{"$error":"#N/A"}}]
[null,null,null,null,null,null,null,"2019-05-05","Abend",{"$f":"INT(H46)+0.75","v":43590.75},{"$f":"VLOOKUP(tSequence[[#This Row],[Datum2]],tData[[Sort]:[Puls]],2,FALSE)","v":{"$error":"#N/A"}},{"$f":"VLOOKUP(tSequence[[#This Row],[Datum2]],tData[[Sort]:[Puls]],3,FALSE)","v":{"$error":"#N/A"}},{"$f":"VLOOKUP(tSequence[[#This Row],[Datum2]],tData[[Sort]:[Puls]],4,FALSE)","v":{"$error":"#N/A"}}]
[null,null,null,null,null,null,null,"2019-05-06","Morgen",{"$f":"INT(H47)+0.25","v":43591.25},{"$f":"VLOOKUP(tSequence[[#This Row],[Datum2]],tData[[Sort]:[Puls]],2,FALSE)","v":{"$error":"#N/A"}},{"$f":"VLOOKUP(tSequence[[#This Row],[Datum2]],tData[[Sort]:[Puls]],3,FALSE)","v":{"$error":"#N/A"}},{"$f":"VLOOKUP(tSequence[[#This Row],[Datum2]],tData[[Sort]:[Puls]],4,FALSE)","v":{"$error":"#N/A"}},{"$f":"MAX(VLOOKUP($K47,tKategorien[],3),VLOOKUP($L47,tKategorien[[Limit diast. ]:[Kat.]],2))","v":{"$error":"#N/A"}},{"$f":"MAX(VLOOKUP($K48,tKategorien[],3),VLOOKUP($L48,tKategorien[[Limit diast. ]:[Kat.]],2))","v":{"$error":"#N/A"}},{"$f":"MAX(VLOOKUP($K49,tKategorien[],3),VLOOKUP($L49,tKategorien[[Limit diast. ]:[Kat.]],2))","v":{"$error":"#N/A"}}]
[null,null,null,null,null,null,null,"2019-05-06","Mittag",{"$f":"INT(H48)+0.5","v":43591.5},{"$f":"VLOOKUP(tSequence[[#This Row],[Datum2]],tData[[Sort]:[Puls]],2,FALSE)","v":{"$error":"#N/A"}},{"$f":"VLOOKUP(tSequence[[#This Row],[Datum2]],tData[[Sort]:[Puls]],3,FALSE)","v":{"$error":"#N/A"}},{"$f":"VLOOKUP(tSequence[[#This Row],[Datum2]],tData[[Sort]:[Puls]],4,FALSE)","v":{"$error":"#N/A"}}]
[null,null,null,null,null,null,null,"2019-05-06","Abend",{"$f":"INT(H49)+0.75","v":43591.75},{"$f":"VLOOKUP(tSequence[[#This Row],[Datum2]],tData[[Sort]:[Puls]],2,FALSE)","v":{"$error":"#N/A"}},{"$f":"VLOOKUP(tSequence[[#This Row],[Datum2]],tData[[Sort]:[Puls]],3,FALSE)","v":{"$error":"#N/A"}},{"$f":"VLOOKUP(tSequence[[#This Row],[Datum2]],tData[[Sort]:[Puls]],4,FALSE)","v":{"$error":"#N/A"}}]
[null,null,null,null,null,null,null,"2019-05-07","Morgen",{"$f":"INT(H50)+0.25","v":43592.25},{"$f":"VLOOKUP(tSequence[[#This Row],[Datum2]],tData[[Sort]:[Puls]],2,FALSE)","v":{"$error":"#N/A"}},{"$f":"VLOOKUP(tSequence[[#This Row],[Datum2]],tData[[Sort]:[Puls]],3,FALSE)","v":{"$error":"#N/A"}},{"$f":"VLOOKUP(tSequence[[#This Row],[Datum2]],tData[[Sort]:[Puls]],4,FALSE)","v":{"$error":"#N/A"}},{"$f":"MAX(VLOOKUP($K50,tKategorien[],3),VLOOKUP($L50,tKategorien[[Limit diast. ]:[Kat.]],2))","v":{"$error":"#N/A"}},{"$f":"MAX(VLOOKUP($K51,tKategorien[],3),VLOOKUP($L51,tKategorien[[Limit diast. ]:[Kat.]],2))","v":{"$error":"#N/A"}},{"$f":"MAX(VLOOKUP($K52,tKategorien[],3),VLOOKUP($L52,tKategorien[[Limit diast. ]:[Kat.]],2))","v":{"$error":"#N/A"}}]
[null,null,null,null,null,null,null,"2019-05-07","Mittag",{"$f":"INT(H51)+0.5","v":43592.5},{"$f":"VLOOKUP(tSequence[[#This Row],[Datum2]],tData[[Sort]:[Puls]],2,FALSE)","v":{"$error":"#N/A"}},{"$f":"VLOOKUP(tSequence[[#This Row],[Datum2]],tData[[Sort]:[Puls]],3,FALSE)","v":{"$error":"#N/A"}},{"$f":"VLOOKUP(tSequence[[#This Row],[Datum2]],tData[[Sort]:[Puls]],4,FALSE)","v":{"$error":"#N/A"}}]
[null,null,null,null,null,null,null,"2019-05-07","Abend",{"$f":"INT(H52)+0.75","v":43592.75},{"$f":"VLOOKUP(tSequence[[#This Row],[Datum2]],tData[[Sort]:[Puls]],2,FALSE)","v":{"$error":"#N/A"}},{"$f":"VLOOKUP(tSequence[[#This Row],[Datum2]],tData[[Sort]:[Puls]],3,FALSE)","v":{"$error":"#N/A"}},{"$f":"VLOOKUP(tSequence[[#This Row],[Datum2]],tData[[Sort]:[Puls]],4,FALSE)","v":{"$error":"#N/A"}}]
[null,null,null,null,null,null,null,"2019-05-08","Morgen",{"$f":"INT(H53)+0.25","v":43593.25},{"$f":"VLOOKUP(tSequence[[#This Row],[Datum2]],tData[[Sort]:[Puls]],2,FALSE)","v":{"$error":"#N/A"}},{"$f":"VLOOKUP(tSequence[[#This Row],[Datum2]],tData[[Sort]:[Puls]],3,FALSE)","v":{"$error":"#N/A"}},{"$f":"VLOOKUP(tSequence[[#This Row],[Datum2]],tData[[Sort]:[Puls]],4,FALSE)","v":{"$error":"#N/A"}},{"$f":"MAX(VLOOKUP($K53,tKategorien[],3),VLOOKUP($L53,tKategorien[[Limit diast. ]:[Kat.]],2))","v":{"$error":"#N/A"}},{"$f":"MAX(VLOOKUP($K54,tKategorien[],3),VLOOKUP($L54,tKategorien[[Limit diast. ]:[Kat.]],2))","v":{"$error":"#N/A"}},{"$f":"MAX(VLOOKUP($K55,tKategorien[],3),VLOOKUP($L55,tKategorien[[Limit diast. ]:[Kat.]],2))","v":{"$error":"#N/A"}}]
[null,null,null,null,null,null,null,"2019-05-08","Mittag",{"$f":"INT(H54)+0.5","v":43593.5},{"$f":"VLOOKUP(tSequence[[#This Row],[Datum2]],tData[[Sort]:[Puls]],2,FALSE)","v":{"$error":"#N/A"}},{"$f":"VLOOKUP(tSequence[[#This Row],[Datum2]],tData[[Sort]:[Puls]],3,FALSE)","v":{"$error":"#N/A"}},{"$f":"VLOOKUP(tSequence[[#This Row],[Datum2]],tData[[Sort]:[Puls]],4,FALSE)","v":{"$error":"#N/A"}}]
[null,null,null,null,null,null,null,"2019-05-08","Abend",{"$f":"INT(H55)+0.75","v":43593.75},{"$f":"VLOOKUP(tSequence[[#This Row],[Datum2]],tData[[Sort]:[Puls]],2,FALSE)","v":{"$error":"#N/A"}},{"$f":"VLOOKUP(tSequence[[#This Row],[Datum2]],tData[[Sort]:[Puls]],3,FALSE)","v":{"$error":"#N/A"}},{"$f":"VLOOKUP(tSequence[[#This Row],[Datum2]],tData[[Sort]:[Puls]],4,FALSE)","v":{"$error":"#N/A"}}]
[null,null,null,null,null,null,null,"2019-05-09","Morgen",{"$f":"INT(H56)+0.25","v":43594.25},{"$f":"VLOOKUP(tSequence[[#This Row],[Datum2]],tData[[Sort]:[Puls]],2,FALSE)","v":{"$error":"#N/A"}},{"$f":"VLOOKUP(tSequence[[#This Row],[Datum2]],tData[[Sort]:[Puls]],3,FALSE)","v":{"$error":"#N/A"}},{"$f":"VLOOKUP(tSequence[[#This Row],[Datum2]],tData[[Sort]:[Puls]],4,FALSE)","v":{"$error":"#N/A"}},{"$f":"MAX(VLOOKUP($K56,tKategorien[],3),VLOOKUP($L56,tKategorien[[Limit diast. ]:[Kat.]],2))","v":{"$error":"#N/A"}},{"$f":"MAX(VLOOKUP($K57,tKategorien[],3),VLOOKUP($L57,tKategorien[[Limit diast. ]:[Kat.]],2))","v":{"$error":"#N/A"}},{"$f":"MAX(VLOOKUP($K58,tKategorien[],3),VLOOKUP($L58,tKategorien[[Limit diast. ]:[Kat.]],2))","v":{"$error":"#N/A"}}]
[null,null,null,null,null,null,null,"2019-05-09","Mittag",{"$f":"INT(H57)+0.5","v":43594.5},{"$f":"VLOOKUP(tSequence[[#This Row],[Datum2]],tData[[Sort]:[Puls]],2,FALSE)","v":{"$error":"#N/A"}},{"$f":"VLOOKUP(tSequence[[#This Row],[Datum2]],tData[[Sort]:[Puls]],3,FALSE)","v":{"$error":"#N/A"}},{"$f":"VLOOKUP(tSequence[[#This Row],[Datum2]],tData[[Sort]:[Puls]],4,FALSE)","v":{"$error":"#N/A"}}]
[null,null,null,null,null,null,null,"2019-05-09","Abend",{"$f":"INT(H58)+0.75","v":43594.75},{"$f":"VLOOKUP(tSequence[[#This Row],[Datum2]],tData[[Sort]:[Puls]],2,FALSE)","v":{"$error":"#N/A"}},{"$f":"VLOOKUP(tSequence[[#This Row],[Datum2]],tData[[Sort]:[Puls]],3,FALSE)","v":{"$error":"#N/A"}},{"$f":"VLOOKUP(tSequence[[#This Row],[Datum2]],tData[[Sort]:[Puls]],4,FALSE)","v":{"$error":"#N/A"}}]
[null,null,null,null,null,null,null,"2019-05-10","Morgen",{"$f":"INT(H59)+0.25","v":43595.25},{"$f":"VLOOKUP(tSequence[[#This Row],[Datum2]],tData[[Sort]:[Puls]],2,FALSE)","v":{"$error":"#N/A"}},{"$f":"VLOOKUP(tSequence[[#This Row],[Datum2]],tData[[Sort]:[Puls]],3,FALSE)","v":{"$error":"#N/A"}},{"$f":"VLOOKUP(tSequence[[#This Row],[Datum2]],tData[[Sort]:[Puls]],4,FALSE)","v":{"$error":"#N/A"}},{"$f":"MAX(VLOOKUP($K59,tKategorien[],3),VLOOKUP($L59,tKategorien[[Limit diast. ]:[Kat.]],2))","v":{"$error":"#N/A"}},{"$f":"MAX(VLOOKUP($K60,tKategorien[],3),VLOOKUP($L60,tKategorien[[Limit diast. ]:[Kat.]],2))","v":{"$error":"#N/A"}},{"$f":"MAX(VLOOKUP($K61,tKategorien[],3),VLOOKUP($L61,tKategorien[[Limit diast. ]:[Kat.]],2))","v":{"$error":"#N/A"}}]
[null,null,null,null,null,null,null,"2019-05-10","Mittag",{"$f":"INT(H60)+0.5","v":43595.5},{"$f":"VLOOKUP(tSequence[[#This Row],[Datum2]],tData[[Sort]:[Puls]],2,FALSE)","v":{"$error":"#N/A"}},{"$f":"VLOOKUP(tSequence[[#This Row],[Datum2]],tData[[Sort]:[Puls]],3,FALSE)","v":{"$error":"#N/A"}},{"$f":"VLOOKUP(tSequence[[#This Row],[Datum2]],tData[[Sort]:[Puls]],4,FALSE)","v":{"$error":"#N/A"}}]
[null,null,null,null,null,null,null,"2019-05-10","Abend",{"$f":"INT(H61)+0.75","v":43595.75},{"$f":"VLOOKUP(tSequence[[#This Row],[Datum2]],tData[[Sort]:[Puls]],2,FALSE)","v":{"$error":"#N/A"}},{"$f":"VLOOKUP(tSequence[[#This Row],[Datum2]],tData[[Sort]:[Puls]],3,FALSE)","v":{"$error":"#N/A"}},{"$f":"VLOOKUP(tSequence[[#This Row],[Datum2]],tData[[Sort]:[Puls]],4,FALSE)","v":{"$error":"#N/A"}}]
[null,null,null,null,null,null,null,"2019-05-11","Morgen",{"$f":"INT(H62)+0.25","v":43596.25},{"$f":"VLOOKUP(tSequence[[#This Row],[Datum2]],tData[[Sort]:[Puls]],2,FALSE)","v":{"$error":"#N/A"}},{"$f":"VLOOKUP(tSequence[[#This Row],[Datum2]],tData[[Sort]:[Puls]],3,FALSE)","v":{"$error":"#N/A"}},{"$f":"VLOOKUP(tSequence[[#This Row],[Datum2]],tData[[Sort]:[Puls]],4,FALSE)","v":{"$error":"#N/A"}},{"$f":"MAX(VLOOKUP($K62,tKategorien[],3),VLOOKUP($L62,tKategorien[[Limit diast. ]:[Kat.]],2))","v":{"$error":"#N/A"}},{"$f":"MAX(VLOOKUP($K63,tKategorien[],3),VLOOKUP($L63,tKategorien[[Limit diast. ]:[Kat.]],2))","v":{"$error":"#N/A"}},{"$f":"MAX(VLOOKUP($K64,tKategorien[],3),VLOOKUP($L64,tKategorien[[Limit diast. ]:[Kat.]],2))","v":{"$error":"#N/A"}}]
[null,null,null,null,null,null,null,"2019-05-11","Mittag",{"$f":"INT(H63)+0.5","v":43596.5},{"$f":"VLOOKUP(tSequence[[#This Row],[Datum2]],tData[[Sort]:[Puls]],2,FALSE)","v":{"$error":"#N/A"}},{"$f":"VLOOKUP(tSequence[[#This Row],[Datum2]],tData[[Sort]:[Puls]],3,FALSE)","v":{"$error":"#N/A"}},{"$f":"VLOOKUP(tSequence[[#This Row],[Datum2]],tData[[Sort]:[Puls]],4,FALSE)","v":{"$error":"#N/A"}}]
[null,null,null,null,null,null,null,"2019-05-11","Abend",{"$f":"INT(H64)+0.75","v":43596.75},{"$f":"VLOOKUP(tSequence[[#This Row],[Datum2]],tData[[Sort]:[Puls]],2,FALSE)","v":{"$error":"#N/A"}},{"$f":"VLOOKUP(tSequence[[#This Row],[Datum2]],tData[[Sort]:[Puls]],3,FALSE)","v":{"$error":"#N/A"}},{"$f":"VLOOKUP(tSequence[[#This Row],[Datum2]],tData[[Sort]:[Puls]],4,FALSE)","v":{"$error":"#N/A"}}]
[null,null,null,null,null,null,null,"2019-05-12","Morgen",{"$f":"INT(H65)+0.25","v":43597.25},{"$f":"VLOOKUP(tSequence[[#This Row],[Datum2]],tData[[Sort]:[Puls]],2,FALSE)","v":{"$error":"#N/A"}},{"$f":"VLOOKUP(tSequence[[#This Row],[Datum2]],tData[[Sort]:[Puls]],3,FALSE)","v":{"$error":"#N/A"}},{"$f":"VLOOKUP(tSequence[[#This Row],[Datum2]],tData[[Sort]:[Puls]],4,FALSE)","v":{"$error":"#N/A"}},{"$f":"MAX(VLOOKUP($K65,tKategorien[],3),VLOOKUP($L65,tKategorien[[Limit diast. ]:[Kat.]],2))","v":{"$error":"#N/A"}},{"$f":"MAX(VLOOKUP($K66,tKategorien[],3),VLOOKUP($L66,tKategorien[[Limit diast. ]:[Kat.]],2))","v":{"$error":"#N/A"}},{"$f":"MAX(VLOOKUP($K67,tKategorien[],3),VLOOKUP($L67,tKategorien[[Limit diast. ]:[Kat.]],2))","v":{"$error":"#N/A"}}]
[null,null,null,null,null,null,null,"2019-05-12","Mittag",{"$f":"INT(H66)+0.5","v":43597.5},{"$f":"VLOOKUP(tSequence[[#This Row],[Datum2]],tData[[Sort]:[Puls]],2,FALSE)","v":{"$error":"#N/A"}},{"$f":"VLOOKUP(tSequence[[#This Row],[Datum2]],tData[[Sort]:[Puls]],3,FALSE)","v":{"$error":"#N/A"}},{"$f":"VLOOKUP(tSequence[[#This Row],[Datum2]],tData[[Sort]:[Puls]],4,FALSE)","v":{"$error":"#N/A"}}]
[null,null,null,null,null,null,null,"2019-05-12","Abend",{"$f":"INT(H67)+0.75","v":43597.75},{"$f":"VLOOKUP(tSequence[[#This Row],[Datum2]],tData[[Sort]:[Puls]],2,FALSE)","v":{"$error":"#N/A"}},{"$f":"VLOOKUP(tSequence[[#This Row],[Datum2]],tData[[Sort]:[Puls]],3,FALSE)","v":{"$error":"#N/A"}},{"$f":"VLOOKUP(tSequence[[#This Row],[Datum2]],tData[[Sort]:[Puls]],4,FALSE)","v":{"$error":"#N/A"}}]
[null,null,null,null,null,null,null,"2019-05-13","Morgen",{"$f":"INT(H68)+0.25","v":43598.25},{"$f":"VLOOKUP(tSequence[[#This Row],[Datum2]],tData[[Sort]:[Puls]],2,FALSE)","v":{"$error":"#N/A"}},{"$f":"VLOOKUP(tSequence[[#This Row],[Datum2]],tData[[Sort]:[Puls]],3,FALSE)","v":{"$error":"#N/A"}},{"$f":"VLOOKUP(tSequence[[#This Row],[Datum2]],tData[[Sort]:[Puls]],4,FALSE)","v":{"$error":"#N/A"}},{"$f":"MAX(VLOOKUP($K68,tKategorien[],3),VLOOKUP($L68,tKategorien[[Limit diast. ]:[Kat.]],2))","v":{"$error":"#N/A"}},{"$f":"MAX(VLOOKUP($K69,tKategorien[],3),VLOOKUP($L69,tKategorien[[Limit diast. ]:[Kat.]],2))","v":{"$error":"#N/A"}},{"$f":"MAX(VLOOKUP($K70,tKategorien[],3),VLOOKUP($L70,tKategorien[[Limit diast. ]:[Kat.]],2))","v":{"$error":"#N/A"}}]
[null,null,null,null,null,null,null,"2019-05-13","Mittag",{"$f":"INT(H69)+0.5","v":43598.5},{"$f":"VLOOKUP(tSequence[[#This Row],[Datum2]],tData[[Sort]:[Puls]],2,FALSE)","v":{"$error":"#N/A"}},{"$f":"VLOOKUP(tSequence[[#This Row],[Datum2]],tData[[Sort]:[Puls]],3,FALSE)","v":{"$error":"#N/A"}},{"$f":"VLOOKUP(tSequence[[#This Row],[Datum2]],tData[[Sort]:[Puls]],4,FALSE)","v":{"$error":"#N/A"}}]
[null,null,null,null,null,null,null,"2019-05-13","Abend",{"$f":"INT(H70)+0.75","v":43598.75},{"$f":"VLOOKUP(tSequence[[#This Row],[Datum2]],tData[[Sort]:[Puls]],2,FALSE)","v":{"$error":"#N/A"}},{"$f":"VLOOKUP(tSequence[[#This Row],[Datum2]],tData[[Sort]:[Puls]],3,FALSE)","v":{"$error":"#N/A"}},{"$f":"VLOOKUP(tSequence[[#This Row],[Datum2]],tData[[Sort]:[Puls]],4,FALSE)","v":{"$error":"#N/A"}}]
[null,null,null,null,null,null,null,"2019-05-14","Morgen",{"$f":"INT(H71)+0.25","v":43599.25},{"$f":"VLOOKUP(tSequence[[#This Row],[Datum2]],tData[[Sort]:[Puls]],2,FALSE)","v":{"$error":"#N/A"}},{"$f":"VLOOKUP(tSequence[[#This Row],[Datum2]],tData[[Sort]:[Puls]],3,FALSE)","v":{"$error":"#N/A"}},{"$f":"VLOOKUP(tSequence[[#This Row],[Datum2]],tData[[Sort]:[Puls]],4,FALSE)","v":{"$error":"#N/A"}},{"$f":"MAX(VLOOKUP($K71,tKategorien[],3),VLOOKUP($L71,tKategorien[[Limit diast. ]:[Kat.]],2))","v":{"$error":"#N/A"}},{"$f":"MAX(VLOOKUP($K72,tKategorien[],3),VLOOKUP($L72,tKategorien[[Limit diast. ]:[Kat.]],2))","v":{"$error":"#N/A"}},{"$f":"MAX(VLOOKUP($K73,tKategorien[],3),VLOOKUP($L73,tKategorien[[Limit diast. ]:[Kat.]],2))","v":{"$error":"#N/A"}}]
[null,null,null,null,null,null,null,"2019-05-14","Mittag",{"$f":"INT(H72)+0.5","v":43599.5},{"$f":"VLOOKUP(tSequence[[#This Row],[Datum2]],tData[[Sort]:[Puls]],2,FALSE)","v":{"$error":"#N/A"}},{"$f":"VLOOKUP(tSequence[[#This Row],[Datum2]],tData[[Sort]:[Puls]],3,FALSE)","v":{"$error":"#N/A"}},{"$f":"VLOOKUP(tSequence[[#This Row],[Datum2]],tData[[Sort]:[Puls]],4,FALSE)","v":{"$error":"#N/A"}}]
[null,null,null,null,null,null,null,"2019-05-14","Abend",{"$f":"INT(H73)+0.75","v":43599.75},{"$f":"VLOOKUP(tSequence[[#This Row],[Datum2]],tData[[Sort]:[Puls]],2,FALSE)","v":{"$error":"#N/A"}},{"$f":"VLOOKUP(tSequence[[#This Row],[Datum2]],tData[[Sort]:[Puls]],3,FALSE)","v":{"$error":"#N/A"}},{"$f":"VLOOKUP(tSequence[[#This Row],[Datum2]],tData[[Sort]:[Puls]],4,FALSE)","v":{"$error":"#N/A"}}]
[null,null,null,null,null,null,null,"2019-05-15","Morgen",{"$f":"INT(H74)+0.25","v":43600.25},{"$f":"VLOOKUP(tSequence[[#This Row],[Datum2]],tData[[Sort]:[Puls]],2,FALSE)","v":{"$error":"#N/A"}},{"$f":"VLOOKUP(tSequence[[#This Row],[Datum2]],tData[[Sort]:[Puls]],3,FALSE)","v":{"$error":"#N/A"}},{"$f":"VLOOKUP(tSequence[[#This Row],[Datum2]],tData[[Sort]:[Puls]],4,FALSE)","v":{"$error":"#N/A"}},{"$f":"MAX(VLOOKUP($K74,tKategorien[],3),VLOOKUP($L74,tKategorien[[Limit diast. ]:[Kat.]],2))","v":{"$error":"#N/A"}},{"$f":"MAX(VLOOKUP($K75,tKategorien[],3),VLOOKUP($L75,tKategorien[[Limit diast. ]:[Kat.]],2))","v":{"$error":"#N/A"}},{"$f":"MAX(VLOOKUP($K76,tKategorien[],3),VLOOKUP($L76,tKategorien[[Limit diast. ]:[Kat.]],2))","v":{"$error":"#N/A"}}]
[null,null,null,null,null,null,null,"2019-05-15","Mittag",{"$f":"INT(H75)+0.5","v":43600.5},{"$f":"VLOOKUP(tSequence[[#This Row],[Datum2]],tData[[Sort]:[Puls]],2,FALSE)","v":{"$error":"#N/A"}},{"$f":"VLOOKUP(tSequence[[#This Row],[Datum2]],tData[[Sort]:[Puls]],3,FALSE)","v":{"$error":"#N/A"}},{"$f":"VLOOKUP(tSequence[[#This Row],[Datum2]],tData[[Sort]:[Puls]],4,FALSE)","v":{"$error":"#N/A"}}]
[null,null,null,null,null,null,null,"2019-05-15","Abend",{"$f":"INT(H76)+0.75","v":43600.75},{"$f":"VLOOKUP(tSequence[[#This Row],[Datum2]],tData[[Sort]:[Puls]],2,FALSE)","v":{"$error":"#N/A"}},{"$f":"VLOOKUP(tSequence[[#This Row],[Datum2]],tData[[Sort]:[Puls]],3,FALSE)","v":{"$error":"#N/A"}},{"$f":"VLOOKUP(tSequence[[#This Row],[Datum2]],tData[[Sort]:[Puls]],4,FALSE)","v":{"$error":"#N/A"}}]
[null,null,null,null,null,null,null,"2019-05-16","Morgen",{"$f":"INT(H77)+0.25","v":43601.25},{"$f":"VLOOKUP(tSequence[[#This Row],[Datum2]],tData[[Sort]:[Puls]],2,FALSE)","v":{"$error":"#N/A"}},{"$f":"VLOOKUP(tSequence[[#This Row],[Datum2]],tData[[Sort]:[Puls]],3,FALSE)","v":{"$error":"#N/A"}},{"$f":"VLOOKUP(tSequence[[#This Row],[Datum2]],tData[[Sort]:[Puls]],4,FALSE)","v":{"$error":"#N/A"}},{"$f":"MAX(VLOOKUP($K77,tKategorien[],3),VLOOKUP($L77,tKategorien[[Limit diast. ]:[Kat.]],2))","v":{"$error":"#N/A"}},{"$f":"MAX(VLOOKUP($K78,tKategorien[],3),VLOOKUP($L78,tKategorien[[Limit diast. ]:[Kat.]],2))","v":{"$error":"#N/A"}},{"$f":"MAX(VLOOKUP($K79,tKategorien[],3),VLOOKUP($L79,tKategorien[[Limit diast. ]:[Kat.]],2))","v":{"$error":"#N/A"}}]
[null,null,null,null,null,null,null,"2019-05-16","Mittag",{"$f":"INT(H78)+0.5","v":43601.5},{"$f":"VLOOKUP(tSequence[[#This Row],[Datum2]],tData[[Sort]:[Puls]],2,FALSE)","v":{"$error":"#N/A"}},{"$f":"VLOOKUP(tSequence[[#This Row],[Datum2]],tData[[Sort]:[Puls]],3,FALSE)","v":{"$error":"#N/A"}},{"$f":"VLOOKUP(tSequence[[#This Row],[Datum2]],tData[[Sort]:[Puls]],4,FALSE)","v":{"$error":"#N/A"}}]
[null,null,null,null,null,null,null,"2019-05-16","Abend",{"$f":"INT(H79)+0.75","v":43601.75},{"$f":"VLOOKUP(tSequence[[#This Row],[Datum2]],tData[[Sort]:[Puls]],2,FALSE)","v":{"$error":"#N/A"}},{"$f":"VLOOKUP(tSequence[[#This Row],[Datum2]],tData[[Sort]:[Puls]],3,FALSE)","v":{"$error":"#N/A"}},{"$f":"VLOOKUP(tSequence[[#This Row],[Datum2]],tData[[Sort]:[Puls]],4,FALSE)","v":{"$error":"#N/A"}}]
[null,null,null,null,null,null,null,"2019-05-17","Morgen",{"$f":"INT(H80)+0.25","v":43602.25},{"$f":"VLOOKUP(tSequence[[#This Row],[Datum2]],tData[[Sort]:[Puls]],2,FALSE)","v":{"$error":"#N/A"}},{"$f":"VLOOKUP(tSequence[[#This Row],[Datum2]],tData[[Sort]:[Puls]],3,FALSE)","v":{"$error":"#N/A"}},{"$f":"VLOOKUP(tSequence[[#This Row],[Datum2]],tData[[Sort]:[Puls]],4,FALSE)","v":{"$error":"#N/A"}},{"$f":"MAX(VLOOKUP($K80,tKategorien[],3),VLOOKUP($L80,tKategorien[[Limit diast. ]:[Kat.]],2))","v":{"$error":"#N/A"}},{"$f":"MAX(VLOOKUP($K81,tKategorien[],3),VLOOKUP($L81,tKategorien[[Limit diast. ]:[Kat.]],2))","v":{"$error":"#N/A"}},{"$f":"MAX(VLOOKUP($K82,tKategorien[],3),VLOOKUP($L82,tKategorien[[Limit diast. ]:[Kat.]],2))","v":{"$error":"#N/A"}}]
[null,null,null,null,null,null,null,"2019-05-17","Mittag",{"$f":"INT(H81)+0.5","v":43602.5},{"$f":"VLOOKUP(tSequence[[#This Row],[Datum2]],tData[[Sort]:[Puls]],2,FALSE)","v":{"$error":"#N/A"}},{"$f":"VLOOKUP(tSequence[[#This Row],[Datum2]],tData[[Sort]:[Puls]],3,FALSE)","v":{"$error":"#N/A"}},{"$f":"VLOOKUP(tSequence[[#This Row],[Datum2]],tData[[Sort]:[Puls]],4,FALSE)","v":{"$error":"#N/A"}}]
[null,null,null,null,null,null,null,"2019-05-17","Abend",{"$f":"INT(H82)+0.75","v":43602.75},{"$f":"VLOOKUP(tSequence[[#This Row],[Datum2]],tData[[Sort]:[Puls]],2,FALSE)","v":{"$error":"#N/A"}},{"$f":"VLOOKUP(tSequence[[#This Row],[Datum2]],tData[[Sort]:[Puls]],3,FALSE)","v":{"$error":"#N/A"}},{"$f":"VLOOKUP(tSequence[[#This Row],[Datum2]],tData[[Sort]:[Puls]],4,FALSE)","v":{"$error":"#N/A"}}]
[null,null,null,null,null,null,null,"2019-05-18","Morgen",{"$f":"INT(H83)+0.25","v":43603.25},{"$f":"VLOOKUP(tSequence[[#This Row],[Datum2]],tData[[Sort]:[Puls]],2,FALSE)","v":{"$error":"#N/A"}},{"$f":"VLOOKUP(tSequence[[#This Row],[Datum2]],tData[[Sort]:[Puls]],3,FALSE)","v":{"$error":"#N/A"}},{"$f":"VLOOKUP(tSequence[[#This Row],[Datum2]],tData[[Sort]:[Puls]],4,FALSE)","v":{"$error":"#N/A"}},{"$f":"MAX(VLOOKUP($K83,tKategorien[],3),VLOOKUP($L83,tKategorien[[Limit diast. ]:[Kat.]],2))","v":{"$error":"#N/A"}},{"$f":"MAX(VLOOKUP($K84,tKategorien[],3),VLOOKUP($L84,tKategorien[[Limit diast. ]:[Kat.]],2))","v":{"$error":"#N/A"}},{"$f":"MAX(VLOOKUP($K85,tKategorien[],3),VLOOKUP($L85,tKategorien[[Limit diast. ]:[Kat.]],2))","v":{"$error":"#N/A"}}]
[null,null,null,null,null,null,null,"2019-05-18","Mittag",{"$f":"INT(H84)+0.5","v":43603.5},{"$f":"VLOOKUP(tSequence[[#This Row],[Datum2]],tData[[Sort]:[Puls]],2,FALSE)","v":{"$error":"#N/A"}},{"$f":"VLOOKUP(tSequence[[#This Row],[Datum2]],tData[[Sort]:[Puls]],3,FALSE)","v":{"$error":"#N/A"}},{"$f":"VLOOKUP(tSequence[[#This Row],[Datum2]],tData[[Sort]:[Puls]],4,FALSE)","v":{"$error":"#N/A"}}]
[null,null,null,null,null,null,null,"2019-05-18","Abend",{"$f":"INT(H85)+0.75","v":43603.75},{"$f":"VLOOKUP(tSequence[[#This Row],[Datum2]],tData[[Sort]:[Puls]],2,FALSE)","v":{"$error":"#N/A"}},{"$f":"VLOOKUP(tSequence[[#This Row],[Datum2]],tData[[Sort]:[Puls]],3,FALSE)","v":{"$error":"#N/A"}},{"$f":"VLOOKUP(tSequence[[#This Row],[Datum2]],tData[[Sort]:[Puls]],4,FALSE)","v":{"$error":"#N/A"}}]
[null,null,null,null,null,null,null,"2019-05-19","Morgen",{"$f":"INT(H86)+0.25","v":43604.25},{"$f":"VLOOKUP(tSequence[[#This Row],[Datum2]],tData[[Sort]:[Puls]],2,FALSE)","v":{"$error":"#N/A"}},{"$f":"VLOOKUP(tSequence[[#This Row],[Datum2]],tData[[Sort]:[Puls]],3,FALSE)","v":{"$error":"#N/A"}},{"$f":"VLOOKUP(tSequence[[#This Row],[Datum2]],tData[[Sort]:[Puls]],4,FALSE)","v":{"$error":"#N/A"}},{"$f":"MAX(VLOOKUP($K86,tKategorien[],3),VLOOKUP($L86,tKategorien[[Limit diast. ]:[Kat.]],2))","v":{"$error":"#N/A"}},{"$f":"MAX(VLOOKUP($K87,tKategorien[],3),VLOOKUP($L87,tKategorien[[Limit diast. ]:[Kat.]],2))","v":{"$error":"#N/A"}},{"$f":"MAX(VLOOKUP($K88,tKategorien[],3),VLOOKUP($L88,tKategorien[[Limit diast. ]:[Kat.]],2))","v":{"$error":"#N/A"}}]
[null,null,null,null,null,null,null,"2019-05-19","Mittag",{"$f":"INT(H87)+0.5","v":43604.5},{"$f":"VLOOKUP(tSequence[[#This Row],[Datum2]],tData[[Sort]:[Puls]],2,FALSE)","v":{"$error":"#N/A"}},{"$f":"VLOOKUP(tSequence[[#This Row],[Datum2]],tData[[Sort]:[Puls]],3,FALSE)","v":{"$error":"#N/A"}},{"$f":"VLOOKUP(tSequence[[#This Row],[Datum2]],tData[[Sort]:[Puls]],4,FALSE)","v":{"$error":"#N/A"}}]
[null,null,null,null,null,null,null,"2019-05-19","Abend",{"$f":"INT(H88)+0.75","v":43604.75},{"$f":"VLOOKUP(tSequence[[#This Row],[Datum2]],tData[[Sort]:[Puls]],2,FALSE)","v":{"$error":"#N/A"}},{"$f":"VLOOKUP(tSequence[[#This Row],[Datum2]],tData[[Sort]:[Puls]],3,FALSE)","v":{"$error":"#N/A"}},{"$f":"VLOOKUP(tSequence[[#This Row],[Datum2]],tData[[Sort]:[Puls]],4,FALSE)","v":{"$error":"#N/A"}}]

{"sheet":"data","index":2,"n_rows":2,"n_cols":7,"rows_kept":2,"cut":false,"hidden":true,"merged":[]}
["Datum1","Tageszeit","Sort","Systolisch","Diastolisch","Puls","Bemerkung"]
[null,null,{"$f":"tData[[#This Row],[Datum1]]+_xlfn.IFNA(VLOOKUP(tData[[#This Row],[Tageszeit]],tTageszeit[],3,FALSE), 0)","v":0}]

{"sheet":"settings","index":3,"n_rows":10,"n_cols":12,"rows_kept":10,"cut":false,"hidden":true,"merged":[]}
[]
[]
[null,"Tageszeit","Index","Zeitwert",null,"Limit syst.","Limit diast. ","Kat.",null,"Bedeutung","Wert","Default"]
[null,"Morgen",1,0.25,null,1,1,1,null,"Letzter Wert vom:",{"$f":"MAX(tData[Datum1])","v":"00:00:00"},{"$f":"MAX(tData[Datum1])","v":"00:00:00"}]
[null,"Mittag",2,0.5,null,90,60,2,null,"Kalenderwoche:",{"$f":"WEEKNUM(K4,21)&\"/\"&YEAR(K4)","v":"52/1900"}]
[null,"Abend",3,0.75,null,120,80,3,null,"4W_Start:","2019-04-22",{"$f":"$K4-WEEKDAY($K4,3)-21","v":-26}]
[null,null,null,null,null,140,90,4,null,"Nachname:"]
[null,null,null,null,null,160,100,5,null,"Vorname:"]
[null,null,null,null,null,180,110,6,null,"Geburtsdatum:"]
[null,null,null,null,null,null,null,null,null,"Mittagswerte verw.:",0,1]